Cogmind - Beta 12 @@@ ROGUE MODE // 2024.01.22 @ 23:31:22 Player: lyrabold Result: Destroyed by Tracker with Linked Autogun Performance ------------- Evolutions (8) 4000 Regions Visited (32) 6400 Robots Destroyed (552) 2760 Value Destroyed (28257) 28257 Prototype IDs (250) 5000 Alien Tech Used (0) 0 Bonus (18218) 18218 TOTAL SCORE: 64635 Bonus ------- High Alert Combat Kills 3646 Follower Combat Kills 4049 Entered Garrisons 1600 Used RIF Installer 3500 Network Hubs Disabled 200 Aligned with FarCom 300 Met Data Miner 300 Used Data Conduit 3000 Built Enhanced Grunts 300 A7 Reached Mainframe 300 Met R17 at Cetus 500 Pursued by Intercept 2000 Friendly Fire -1477 Cogmind --------- Core Integrity 0/1450 Matter 225/300 Energy 93/100 System Corruption 13% Temperature Cool (0) Movement Walking (120) Location -2/Research Parts ------- > --- POWER (3) -------- (None) > --- PROPULSION (4) --- High-density Centrium Leg > --- UTILITY (12) ----- (None) > --- WEAPON (4) ------- (None) > --- INVENTORY (5) ---- Micro Antimatter Reactor Experimental Actuator Array HERF Cannon Peak State ------------ > --- POWER ------------ Light Antimatter Reactor Light Antimatter Reactor Quantum Reactor > --- PROPULSION ------- Centrium Heavy Treads Centrium Heavy Treads > --- UTILITY ---------- Advanced Heat Sink Advanced Cooling System Huge Storage Unit Experimental Targeting Computer Advanced Weapon Cycler Advanced Phase Shifter Centrium Medium Armor Plating Advanced Force Field Relay Coupler [NC] Relay Coupler [Sentry] Relay Coupler [Hunter] > --- WEAPON ----------- EMDS Enhanced Nova Cannon > --- INVENTORY -------- Medium Treads Armored Heavy Treads Advanced Energy Well Advanced Weapon Cycler Cloak of Protection Centrium Medium Armor Plating Experimental EM Disruption Field Advanced Force Field Relay Coupler [NC] Relay Coupler [Sentry] Relay Coupler [Proto] Relay Coupler [Proto] Relay Coupler [Proto] Relay Coupler [Proto] Relay Coupler [Proto] Relay Coupler [Proto] Relay Coupler [Proto] Long-range Tractor Beam Heavy Phase Cannon Enhanced Nova Cannon Enhanced Nova Cannon Enhanced Gauss Cannon Heavy Missile Launcher Improved Remote Datajack [Rating: 168] Favorites ----------- Power Heavy Deuterium Engine Engine Heavy Deuterium Engine Power Core Micro Nuclear Core Reactor Light Antimatter Reactor Propulsion Light Treads Treads Light Treads Leg Aluminum Leg Wheel Armored Huge Wheel Hover Unit Improved Antigrav System Flight Unit Field Propulsion Drive Utility Huge Storage Unit Device Advanced Shield Generator Storage Huge Storage Unit Processor Core Analyzer Hackware Relay Coupler [NC] Protection Improved Medium Armor Plating Weapon Flak Cannon Energy Gun Beam Rifle Energy Cannon Enhanced Nova Cannon Ballistic Gun Gauss Rifle Ballistic Cannon Flak Cannon Launcher Heavy Missile Launcher Special Weapon Improved Remote Datajack Impact Weapon Powered Hammer Piercing Weapon Makeshift Spear Special Melee Weapon Improved Datajack Build | -11 -10 -10 -10 -9 -8 -8 -8 -8 -7 -7 -7 -7 -7 -7 -6 -6 -6 -6 -6 -6 -6 -6 -6 -5 -5 -4 -4 -3 -3 -2 -2 -2 ------- Run | Jun Mat Min Exi Min Mat Gar Mat Gar Fac Gar Fac Low Low Dat Pro Fac Was Fac Ext Cet Arc Hub Gar Fac Gar Fac Gar Res Gar Res Gar Res Slots Evolved 16 | . . . . . 4 . . . 2 . . . . . . 2 . . . . . . . 2 . 2 . 2 . 2 . . Power 2 | . . . . . . . . . 1 . . . . . . . . . . . . . . . . . . 1 . . . . Propulsion 2 | . . . . . 2 . . . . . . . . . . . . . . . . . . . . . . . . . . . Utility 10 | . . . . . 2 . . . 1 . . . . . . 2 . . . . . . . 2 . 2 . . . 1 . . Weapon 2 | . . . . . . . . . . . . . . . . . . . . . . . . . . . . 1 . 1 . . Parts Attached 757 | 7 23 14 . 7 45 18 18 21 57 38 28 6 9 7 7 14 4 30 36 16 6 37 30 28 30 15 37 58 31 44 13 23 Power 49 | 1 2 . . 1 1 . 1 . 5 1 2 . . 1 . . . 3 4 . 1 3 . . 1 1 3 5 4 6 . 3 Engine 9 | 1 2 . . 1 . . 1 . 1 . 2 . . . . . . 1 . . . . . . . . . . . . . . Core 14 | . . . . . 1 . . . 4 . . . . . . . . 1 4 . 1 . . . 1 . 2 . . . . . Reactor 26 | . . . . . . . . . . 1 . . . 1 . . . 1 . . . 3 . . . 1 1 5 4 6 . 3 Propulsion 80 | 2 5 5 . 1 10 1 8 2 8 4 1 . . . . . . 3 2 3 1 . 1 2 . 2 . 3 3 2 4 7 Treads 63 | . 4 3 . 1 10 1 8 2 8 4 1 . . . . . . 3 1 3 1 . 1 2 . 2 . 3 3 2 . . Leg 7 | 2 1 . . . . . . . . . . . . . . . . . . . . . . . . . . . . . . 4 Wheel 3 | . . 2 . . . . . . . . . . . . . . . . 1 . . . . . . . . . . . . . Hover 2 | . . . . . . . . . . . . . . . . . . . . . . . . . . . . . . . 1 1 Flight 5 | . . . . . . . . . . . . . . . . . . . . . . . . . . . . . . . 3 2 Utility 296 | 2 9 7 . . 16 1 . 5 15 14 5 2 3 2 . 7 2 12 18 5 4 17 15 14 15 8 22 24 14 24 8 6 Device 161 | 1 7 5 . . 4 . . 2 5 7 2 2 2 1 . 3 1 4 11 . 2 10 6 9 11 8 12 14 4 20 2 6 Storage 10 | 1 2 . . . . . . . . . . . . . . 1 . . . . . . . . . . 4 1 1 . . . Processor 12 | . . . . . . 1 . . 2 . . . . . . . . . . . . 2 . . 1 . . 3 . 2 1 . Hackware 46 | . . . . . . . . 1 3 2 1 . . . . 1 . 3 . . 2 . 5 1 2 . 5 5 8 2 5 . Protection 67 | . . 2 . . 12 . . 2 5 5 2 . 1 1 . 2 1 5 7 5 . 5 4 4 1 . 1 1 1 . . . Artifact . | . . . . . . . . . . . . . . . . . . . . . . . . . . . . . . . . . Weapon 332 | 2 7 2 . 5 18 16 9 14 29 19 20 4 6 4 7 7 2 12 12 8 . 17 14 12 14 4 12 26 10 12 1 7 Energy Gun 19 | . 3 . . 1 5 . . . . . . . . . . . . . . . . . 1 2 3 2 1 . . . . 1 Energy Cannon 62 | . 2 1 . 2 . . 2 . 6 3 1 . 1 . 4 3 . 4 2 3 . 4 . 1 4 . 5 10 . 3 . 1 Ballistic Gun 92 | 2 . . . . 9 9 6 7 13 7 3 . . 1 . . 1 2 6 3 . 8 5 4 1 . 1 1 . 1 . 2 Ballistic Cannon 41 | . . . . . . . . . 1 2 9 3 3 1 . 1 . 3 . . . . . . . . 1 4 6 5 . 2 Launcher 26 | . . 1 . 2 3 1 . 2 . 2 . 1 . . 3 . . . 2 . . 2 1 . . . 2 4 . . . . Special Weapon 56 | . 2 . . . 1 . . . 8 4 3 . 1 1 . 2 1 2 1 1 . . 3 3 3 2 2 7 4 3 1 1 Impact Weapon 34 | . . . . . . 6 1 4 1 1 4 . 1 . . 1 . 1 1 1 . 3 4 2 3 . . . . . . . Slashing Weapon . | . . . . . . . . . . . . . . . . . . . . . . . . . . . . . . . . . Piercing Weapon 1 | . . . . . . . . . . . . . . 1 . . . . . . . . . . . . . . . . . . Special Melee Weapon 1 | . . . . . . . . 1 . . . . . . . . . . . . . . . . . . . . . . . . Unidentified Prototypes 10 | . . . . . 4 . 1 . . . . . . . . . . . . . . 3 . . 1 . . 1 . . . . Corrupted Parts 6 | . . . . . . . . . . 1 . . . . . . . . . . . 1 3 . . . . . 1 . . . System Corruption 39 | . . . . . . . . . . 1 . . . . . . . . . . . 10 25 . . . . . 3 . . . Parts Lost 104 | . 1 1 . 1 8 . 1 2 2 3 . . . 1 . . . 10 5 1 . 5 4 1 1 . 6 13 8 7 13 10 Power 18 | . 1 . . 1 1 . 1 . . 1 . . . . . . . 1 . . . . . . 1 . 1 3 2 2 1 2 Propulsion 24 | . . . . . 3 . . . 2 1 . . . . . . . 1 1 . . . 1 . . . . 2 1 2 7 3 Utility 51 | . . 1 . . 3 . . 2 . 1 . . . 1 . . . 7 4 1 . 4 1 1 . . 5 5 5 3 4 3 Weapon 11 | . . . . . 1 . . . . . . . . . . . . 1 . . . 1 2 . . . . 3 . . 1 2 Highest Loss Streak 11 | . 1 1 . 1 4 . 1 2 1 2 . . . 1 . . . 8 4 1 . 4 3 1 1 . 6 7 6 4 11 4 To Critical Strikes 1 | . . . . . . . . . . . . . . . . . . . . . . . . . . . . 1 . . . . Average Slot Usage (%) 88 | . 97 99 100 99 97 100 99 99 99 90 83 83 80 83 84 86 86 80 85 86 79 83 82 81 87 88 86 82 81 85 78 27 Engine 5 | . 13 14 14 13 1 . 1 9 10 6 9 15 15 11 7 6 6 . 2 . . . . . . . . . . . . . Core 2 | . . . . . 7 9 8 . 4 . . . . . . . . . 10 13 13 10 . . 3 2 1 . . . . . Reactor 3 | . . . . . . . . . . 6 4 . . 3 7 6 6 10 . . . 2 13 11 6 7 7 11 10 11 11 4 Treads 18 | . 18 25 14 23 35 36 35 36 29 21 14 15 15 15 15 13 13 12 7 9 6 13 12 10 11 10 10 10 14 12 7 . Device 9 | . 12 12 . . 9 3 . 1 6 5 7 7 7 7 7 19 12 14 14 8 9 5 1 6 10 20 20 18 11 10 6 4 Storage 7 | . 14 14 14 14 9 9 9 9 7 7 7 7 7 7 7 6 6 6 6 6 6 6 6 5 5 5 9 7 6 4 3 . Processor 3 | . . . . . . 5 9 9 7 7 7 7 3 . . . . . . . . 2 6 5 5 5 5 4 9 8 11 . Hackware 7 | . . . . . . . . 6 5 9 7 7 7 7 7 6 6 2 10 6 8 16 23 21 17 15 8 13 18 25 22 . Protection 9 | . . 1 14 14 15 18 18 9 8 6 7 7 7 15 15 13 20 17 12 21 13 13 3 5 11 10 9 2 . . . . Energy Gun 2 | . 17 14 14 14 2 . . . . . . . . . . . . . . . . . . 2 4 4 1 . . . . 1 Energy Cannon 3 | . . 13 14 13 . . . . . 4 . . . . 12 11 6 3 . 2 . 1 . 1 1 5 3 8 . 2 3 . Ballistic Gun 5 | . 9 . . . 14 14 17 16 14 6 4 . . 4 . . . 3 5 4 13 9 7 1 2 . . . . . . 1 Ballistic Cannon 2 | . . . . . . . . . . . 9 14 13 4 . . . 3 6 4 . . . . . . 2 . 6 5 3 . Naked Turns 61 | . . . . . . . . . . . . . . . . . . . . . . . . . . . . . . . 42 19 Heaviest Build 192 | 13 92 96 96 96 117 103 106 104 134 123 127 126 133 141 141 151 152 163 131 142 142 146 141 162 162 162 181 192 172 189 160 57 Greatest Support 160 | 20 40 40 16 40 80 80 80 80 80 145 145 145 145 145 145 145 145 150 150 28 160 160 160 160 160 160 160 160 126 126 126 69 Greatest Overweight (x) 5 | . 4 5 5 5 1 1 1 1 1 1 . . . . . 1 1 1 4 5 5 . . 1 1 1 1 1 1 1 2 1 Average Overweight (x) 1 | . 1 2 5 3 1 1 1 1 1 . . . . . . . . . 3 4 3 . . . . . . 1 1 1 1 . Largest Inventory Capacity 25 | 8 25 25 25 25 25 25 25 25 25 25 25 25 25 25 25 25 25 25 25 25 25 25 25 25 25 25 25 25 25 25 25 5 Average Capacity 24 | 7 20 25 25 25 25 25 25 25 25 25 25 25 25 25 25 25 25 25 25 25 25 25 25 25 25 25 25 25 25 25 22 5 Most Carried 25 | 5 25 25 25 25 25 25 25 25 25 25 25 25 25 25 25 25 25 25 25 25 25 25 25 25 25 25 25 25 25 25 25 5 Average Carried 23 | 3 18 24 24 24 24 24 24 24 24 24 24 24 24 23 24 23 24 23 24 24 24 24 23 22 24 23 24 24 24 24 22 3 Final Capacity 25 | 8 25 25 25 25 25 25 25 25 25 25 25 25 25 25 25 25 25 25 25 25 25 25 25 25 25 25 25 25 25 25 5 5 Final Carried 25 | 5 25 24 25 25 25 25 25 25 24 25 25 25 25 25 25 24 25 25 25 25 25 25 22 25 25 25 25 25 25 24 5 3 Class Distribution -------------------- 46% | Mutant 17% | Scavenger-Mutant 13% | Botlord-Mutant 9% | Bothacker-Mutant 4% | Commander-Mutant 4% | Hacker-Mutant 4% | Botlord-Gunner Dominant Class ---------------- Mutant | -10/Materials Mutant | -10/Mines Mutant | -10/Exiles Mutant | -9/Mines Mutant | -8/Materials Mutant | -8/Garrison Scavenger-Mutant | -8/Materials Scavenger-Mutant | -8/Garrison Scavenger-Mutant | -7/Factory Bothacker-Mutant | -7/Garrison Mutant | -7/Factory Mutant | -7/Lower Caves Mutant | -7/Lower Caves Mutant | -7/Data Miner Mutant | -6/Proximity Caves Mutant | -6/Factory Mutant | -6/Waste Scavenger-Mutant | -6/Factory Hacker-Mutant | -6/Extension Commander-Mutant | -6/Cetus Commander-Mutant | -6/Archives Scavenger-Mutant | -6/Hub_04(d) Bothacker-Mutant | -6/Garrison Bothacker-Mutant | -5/Factory Scavenger-Mutant | -5/Garrison Botlord-Mutant | -4/Factory Botlord-Mutant | -4/Garrison Botlord-Mutant | -3/Research Botlord-Mutant | -3/Garrison Botlord-Gunner | -2/Research Botlord-Mutant | -2/Garrison Mutant | -2/Research Resources | -11 -10 -10 -10 -9 -8 -8 -8 -8 -7 -7 -7 -7 -7 -7 -6 -6 -6 -6 -6 -6 -6 -6 -6 -5 -5 -4 -4 -3 -3 -2 -2 -2 ----------- Run | Jun Mat Min Exi Min Mat Gar Mat Gar Fac Gar Fac Low Low Dat Pro Fac Was Fac Ext Cet Arc Hub Gar Fac Gar Fac Gar Res Gar Res Gar Res Matter Collected 17953 | 288 298 148 36 100 1037 557 512 338 1438 997 508 383 517 270 285 73 . 1144 1025 231 306 843 652 306 371 259 672 935 1071 1513 274 566 Remotely 4268 | . . . . . . . . . . 349 79 58 175 . . . . 271 423 . . 269 317 286 56 211 130 277 490 877 . . Salvage Created 23192 | 81 781 139 . 65 1752 767 830 623 1667 1015 280 202 126 359 380 188 . 1412 539 63 259 2107 456 318 212 176 880 3557 892 2080 344 642 Parts 1131 | 8 49 8 . 22 89 43 50 28 100 48 10 10 8 15 15 12 . 47 19 2 23 112 26 24 10 14 22 145 29 96 20 27 Haulers Intercepted 16 | . 2 . . . 6 . . . 2 . 2 . . . . . . . . . . 1 . . . . . 2 . . . 1 Recyclers Shooed 13 | 1 . . . . 3 . 2 . 3 . . . . . . . . 1 . . . 1 . . . . . 1 . . . 1 Parts Field Recycled . | . . . . . . . . . . . . . . . . . . . . . . . . . . . . . . . . . Retrieved Matter . | . . . . . . . . . . . . . . . . . . . . . . . . . . . . . . . . . Parts Self-Destructed 34 | . . . . . . . . . . . . 13 15 . 6 . . . . . . . . . . . . . . . . . Prevented 11 | . . . . . . . . . . . . 3 2 . 6 . . . . . . . . . . . . . . . . . Kills | -11 -10 -10 -10 -9 -8 -8 -8 -8 -7 -7 -7 -7 -7 -7 -6 -6 -6 -6 -6 -6 -6 -6 -6 -5 -5 -4 -4 -3 -3 -2 -2 -2 ------- Run | Jun Mat Min Exi Min Mat Gar Mat Gar Fac Gar Fac Low Low Dat Pro Fac Was Fac Ext Cet Arc Hub Gar Fac Gar Fac Gar Res Gar Res Gar Res Combat Hostiles Destroyed 425 | . 15 11 . 9 25 21 16 13 22 21 3 10 8 4 11 4 . 25 14 1 . 20 13 9 4 2 24 51 19 33 8 9 Guns 151 | . 15 6 . 1 15 19 15 8 18 5 . . . 1 . . . 6 2 . . 15 10 3 3 1 1 . . 1 . 6 Cannons 162 | . . 3 . 2 . . 1 . 3 4 3 8 8 3 1 . . 17 8 1 . . . 6 1 . 6 33 18 27 8 1 AOE 87 | . . 2 . 6 10 2 . 5 1 11 . 2 . . 9 3 . 2 4 . . 2 3 . . . 13 10 1 1 . . Classes Destroyed 24 | 2 6 1 . . 5 2 3 . . . . 1 . . 1 . . . . . . 1 1 . . . . 1 . . . . Worker 23 | . 3 . . . 3 . . . 4 . . . . . . 1 . 1 . . . 5 . . . . . 4 . 2 . . Builder 24 | . . . . . . . 2 . 1 . 3 . . . . . . 3 . . . 5 . 1 . . . 4 . 5 . . Tunneler 7 | 2 . . . 2 1 . 1 . . . . . . . . . . . . . . 1 . . . . . . . . . . Hauler 16 | . 2 . . . 6 . . . 2 . 2 . . . . . . . . . . 1 . . . . . 2 . . . 1 Recycler 24 | 1 1 . . . 6 . 2 . 3 . 1 . . . . . . 3 1 . . 4 . . . . . 1 . 1 . . Mechanic 3 | . . . . . 1 . . . 1 . . . . . . . . . . . . . . . . . . 1 . . . . Operator 11 | . 1 . . . . . . . . . . . . . . . . . . . 8 1 . . . . . 1 . . . . Drone 3 | . . . . . . . . . . . . . . . 2 . . . . . . 1 . . . . . . . . . . Watcher 20 | . 2 . . . 2 1 . . 2 . . . . . . 1 . . 1 . . 2 . 1 . 2 . 4 . 2 . . Swarmer 93 | . 5 6 . 9 4 4 5 . . 8 . . 1 . . 2 . 5 3 . . 2 3 7 2 . 10 10 3 1 . 3 Cutter 9 | . . . . . . 1 . . . . . . . . . . . . . . . . 3 . . . . . . . 5 . Saboteur 1 | . . . . . . . . . . . . . . . . . . . . . . . . . . . . 1 . . . . Grunt 145 | . 10 . . . 15 9 5 12 8 7 2 3 2 . 7 . . 9 2 . . 6 4 . . . 7 16 6 13 . 2 Brawler 9 | . . . . . . . 1 2 . . . 1 1 . . . . 1 . . . . . . . . . 1 . 2 . . Duelist 7 | . . . . . 1 . . . . . . 2 . . . . . 1 . . . . 1 . . . . . 2 . . . Protector 2 | . . . . . . . . . . . . . . . . . . . . . . 1 . . . . . 1 . . . . Sentry 44 | . . . . . 2 6 4 . 6 1 . 1 1 . 1 . . 3 7 . . 3 . . . . 4 1 3 . 1 . Specialist 5 | . . . . . 2 . . . . 3 . . . . . . . . . . . . . . . . . . . . . . Hunter 29 | . . . . . . . 1 . 3 . . 1 1 . 1 1 . 2 2 . . 2 . . . . . 8 . 5 . 2 Programmer 56 | . . . . . . 1 . . 5 2 1 . 2 . . 1 . 2 . . . 1 1 2 2 2 2 12 5 11 2 2 Heavy 3 | . . . . . 1 . . . . . . . . . . . . . . . . 2 . . . . . . . . . . Behemoth 3 | . . . . . . . . . . . . . . . . . . . . . . . 1 . . . 1 . 1 . . . Cetus Guard 1 | . . . . . . . . . . . . . . . . . . . . 1 . . . . . . . . . . . . Enhanced Grunt 4 | . . . . . . . . . . . . . . 4 . . . . . . . . . . . . . . . . . . Lightning 3 | . . . . . . . . . . . . . . . . . . . . . . 3 . . . . . . . . . . Tracker 1 | . . . . . . . . . . . . . . . . . . 1 . . . . . . . . . . . . . . Combat Programmer 3 | . . . . . . . . . . . . . . . . . . 1 . . . . . . . . . 1 . 1 . . Thief 2 | . . . . . . . . . . . . 2 . . . . . . . . . . . . . . . . . . . . Assembled 5 | . . 5 . . . . . . . . . . . . . . . . . . . . . . . . . . . . . . Infiltrator 1 | . . . . . . . . . . . . . . . . . . . . . . . . . . . . . 1 . . . Best Kill Streak 13 | 2 5 5 . 5 10 4 7 3 4 12 4 5 3 3 4 2 . 13 5 1 6 11 6 5 2 2 8 9 6 6 5 3 Combat Bots Only 12 | . 3 5 . 3 7 4 6 3 3 12 2 5 3 3 4 2 . 6 5 1 . 7 6 5 2 2 8 7 6 6 5 3 Max Kills in Single Turn 10 | 1 2 2 . 3 5 2 1 3 3 4 1 1 1 1 3 2 . 3 2 1 1 10 1 2 1 1 3 3 1 2 3 1 Gunslinging 1 | . . . . . . . . . . . . . . . . . . . . . . 1 . . . . . . . . . . Exploded 4 | . . 1 . 2 3 1 . 3 1 4 . 1 . . 3 2 . 1 2 . . 1 1 . . . 3 3 1 1 . . Melee . | . . . . . . . . . . . . . . . . . . . . . . . . . . . . . . . . . Uniques/NPCs Destroyed 1 | . . . . . . . . . . . . . . 1 . . . . . . . . . . . . . . . . . . Data Miner (-7/Data Miner) Combat | -11 -10 -10 -10 -9 -8 -8 -8 -8 -7 -7 -7 -7 -7 -7 -6 -6 -6 -6 -6 -6 -6 -6 -6 -5 -5 -4 -4 -3 -3 -2 -2 -2 -------- Run | Jun Mat Min Exi Min Mat Gar Mat Gar Fac Gar Fac Low Low Dat Pro Fac Was Fac Ext Cet Arc Hub Gar Fac Gar Fac Gar Res Gar Res Gar Res Damage Taken 31808 | . 431 428 . 134 1736 869 598 390 1236 1628 274 421 568 315 404 49 . 2545 1605 72 . 2694 1504 299 290 2 2656 3082 1640 2043 1538 2357 Core 3529 | . 112 86 . 9 79 83 37 83 127 140 34 45 29 . 53 14 . 117 104 . . 177 61 30 32 . 122 348 152 169 576 710 Absorbed by Shields 5871 | . . . . . 194 62 . 33 475 326 99 159 209 12 . 18 . 592 444 37 . . . 116 65 3 657 791 962 540 77 . Reduced by Siege Mode 1827 | . . . . . . . . . . 73 20 84 108 36 25 . . 219 190 . . 217 148 50 28 . 297 196 52 84 . . Redirected to Shielding 37 | . . . . . . . . . . . . . . . . . . . . . . . . . . . . 37 . . . . Regen/Repaired (Parts) 2958 | . 178 . . . 127 . . . 76 525 237 34 59 . . . . . . . . . . 1404 . 318 . . . . . . Core Remaining (%) 61 | 100 . . . 17 . . . 48 . . . . . . 38 . . . . . . . 44 . 93 . 89 . 61 . . . Volleys Fired 1570 | 12 85 22 . 8 95 50 47 35 102 98 25 26 21 21 17 7 18 86 48 7 56 76 41 24 57 20 74 139 77 105 28 43 Largest 3 | 2 2 2 . 2 2 2 2 2 2 2 2 2 2 2 2 2 2 2 2 2 2 2 2 2 2 2 2 3 2 2 2 2 Hottest 360 | 40 112 116 . 116 110 51 126 64 138 133 149 88 149 101 138 149 145 174 79 109 58 120 70 170 240 170 330 360 120 190 180 135 Shots Fired 2545 | 24 167 42 . 12 179 96 93 67 190 140 38 49 41 30 28 12 23 131 87 10 56 132 62 39 82 28 117 211 104 162 39 54 Gun 1329 | 24 165 20 . 4 166 93 88 64 159 83 4 . . 20 1 . 5 26 36 1 56 103 53 15 53 10 33 3 . 6 . 38 Cannon 1014 | . . 20 . 4 . . 5 . 17 42 27 46 40 9 16 10 10 103 44 8 . 25 . 23 19 14 74 183 94 138 27 16 Launcher 77 | . . 2 . 4 11 3 . 3 . 7 . 3 . . 11 . . . 5 . . 4 4 . . . 8 12 . . . . Special 125 | . 2 . . . 2 . . . 14 8 7 . 1 1 . 2 8 2 2 1 . . 5 1 10 4 2 13 10 18 12 . Kinetic 1590 | 24 102 . . . 150 93 88 64 163 88 30 46 37 29 2 1 5 81 78 3 56 103 53 . 18 . 32 8 94 99 11 32 Thermal 614 | . 65 40 . 8 2 . . . . 23 1 . 3 . . 1 10 33 . . . 25 . 38 51 24 75 163 . 36 16 . Explosive 77 | . . 2 . 4 11 3 . 3 . 7 . 3 . . 11 . . . 5 . . 4 4 . . . 8 12 . . . . Electromagnetic 143 | . . . . . 16 . 5 . 13 14 . . . . 15 8 . 15 2 6 . . . . 3 . . 15 . 9 . 22 Robot Hit Streak 55 | 4 7 7 . 5 15 14 17 7 24 36 16 32 18 10 7 16 9 47 33 6 9 34 54 55 37 12 22 21 37 30 12 24 Robot Miss Streak 11 | 3 5 2 . 2 3 3 5 3 8 7 4 11 6 1 2 2 1 5 2 1 3 2 1 1 2 1 1 2 5 3 4 2 Penetration Max 1 | . . . . . . . . . 1 . . . . 1 . . . 1 1 1 . 1 . . 1 . . 1 . 1 . . Secondary Targets 24 | . . . . . 5 3 1 2 4 2 . . . . . . . . . . . 3 3 . . . . . . . . 1 Max Gunslinging Chain 1 | . . . . . 1 1 1 1 1 1 . . . . . . . . . . . 1 1 . . . . . . . . 1 Shots Hit Robots 1840 | 12 98 24 . 6 128 74 65 45 132 103 37 40 36 25 15 11 15 109 67 9 40 96 54 24 57 16 92 149 66 123 28 44 Core Hits 1149 | 7 43 15 . 10 77 67 45 29 70 71 22 59 51 13 20 6 . 85 38 6 21 61 24 12 10 5 37 91 44 75 14 21 Critical Kills 26 | . . . . . . 1 1 . . 3 . . . 3 . . . . . . 1 5 1 . . 1 3 5 . 2 . . Critical Parts Destroyed 23 | . 1 . . . . 1 . 1 1 2 . . . 3 . . 1 . 1 . . 5 5 . 2 . . . . . . . Critical Strikes 124 | . 4 . . . . 2 1 1 1 5 . . . 7 . . 3 . 5 . 1 10 7 . 3 1 11 11 11 38 1 1 Burn 3 | . 3 . . . . . . . . . . . . . . . . . . . . . . . . . . . . . . . Meltdown 9 | . . . . . . . . . . . . . . . . . . . . . . . . . . 1 3 5 . . . . Destroy 47 | . 1 . . . . 1 1 1 1 5 . . . 7 . . 3 . 1 . 1 10 7 . 3 . 3 . . 2 . . Blast 55 | . . . . . . . . . . . . . . . . . . . 4 . . . . . . . 5 . 11 34 1 . Corrupt 9 | . . . . . . . . . . . . . . . . . . . . . . . . . . . . 6 . 2 . 1 Smash 1 | . . . . . . 1 . . . . . . . . . . . . . . . . . . . . . . . . . . Melee Attacks 105 | . . . . . . 31 1 10 4 14 14 . 1 8 . 1 . 3 1 4 . 4 5 1 3 . . . . . . . Impact 92 | . . . . . . 31 1 5 4 14 14 . 1 . . 1 . 3 1 4 . 4 5 1 3 . . . . . . . Slashing . | . . . . . . . . . . . . . . . . . . . . . . . . . . . . . . . . . Piercing 8 | . . . . . . . . . . . . . . 8 . . . . . . . . . . . . . . . . . . Sneak Attacks 9 | . . . . . . 1 . 5 . . 2 . . 1 . . . . . . . . . . . . . . . . . . Combat Hostiles . | . . . . . . . . . . . . . . . . . . . . . . . . . . . . . . . . . Follow-up Attacks . | . . . . . . . . . . . . . . . . . . . . . . . . . . . . . . . . . Damage Inflicted 65633 | 117 1245 538 . 593 3357 1490 1109 972 2672 3080 606 1217 963 606 1517 521 230 4317 2792 304 839 4651 1734 1008 1700 462 4667 9235 3137 6772 1334 1848 Guns 20875 | 108 1053 216 . 29 1869 1255 1013 670 2239 1372 69 . . 394 . . 41 601 751 42 839 2246 1375 395 1372 260 1005 97 . 194 . 1370 Cannons 31009 | . . 195 . 35 . . 79 . 288 776 312 831 903 162 268 257 189 2855 1408 262 . 590 . 592 328 202 2349 6639 3137 6544 1334 474 Explosions 12794 | . 168 116 . 494 1459 120 . 302 80 917 . 350 . . 1249 235 . 793 609 . . 1803 359 . . . 1313 2427 . . . . Melee 388 | . . . . . . 115 . . . . 223 . . 50 . . . . . . . . . . . . . . . . . . Ramming 567 | 9 24 11 . 35 29 . 17 . 65 15 2 36 60 . . 29 . 68 24 . . 12 . 21 . . . 72 . 34 . 4 Kinetic 32909 | 108 456 . . . 1616 1255 1013 670 2283 1467 381 831 860 556 . 22 41 2215 2159 118 839 2246 1375 . 572 . 986 372 3137 5427 664 1240 Thermal 16101 | . 597 411 . 64 . . . . 80 282 . . 43 . 53 235 189 1659 . . . 590 . 987 1086 462 2368 5470 . 855 670 . Explosive 10070 | . 168 116 . 494 1459 120 . 302 . 917 . 350 . . 1196 . . . 609 . . 326 359 . . . 1313 2341 . . . . Electromagnetic 5598 | . . . . . 253 . 79 . 244 399 . . . . 268 235 . 375 . 186 . 1477 . . 42 . . 980 . 456 . 604 Impact 338 | . . . . . . 115 . . . . 223 . . . . . . . . . . . . . . . . . . . . . Slashing . | . . . . . . . . . . . . . . . . . . . . . . . . . . . . . . . . . Piercing 50 | . . . . . . . . . . . . . . 50 . . . . . . . . . . . . . . . . . . Highest Corruption 59 | . . . . . . . . . 5 2 4 4 5 5 5 . 31 36 36 31 31 40 59 2 2 . . 3 11 2 3 12 Average Corruption 12 | . . . . . . . . . 3 1 2 4 4 5 5 . 17 33 31 31 22 24 40 1 1 . . 2 10 1 2 5 Corruption Purged 37 | . . . . . . . . . 5 . . . . . . . . 5 5 . 13 6 1 2 . . . . . . . . Corruption Blocked . | . . . . . . . . . . . . . . . . . . . . . . . . . . . . . . . . . Effects 675 | . . . . . . . . . 38 13 20 40 45 11 32 . 15 118 94 24 25 53 43 1 3 . . 21 54 8 8 9 Message Errors 149 | . . . . . . . . . 9 2 5 7 7 2 9 . 1 31 13 7 9 11 10 1 1 . . 6 9 4 4 1 Matter Fused 168 | . . . . . . . . . 8 4 4 13 16 3 8 . 5 24 27 6 4 9 8 . 1 . . 9 14 2 2 1 Heat Flow Errors 66 | . . . . . . . . . 3 1 2 5 5 1 1 . . 11 10 2 3 7 4 . . . . 1 7 . . 3 Energy Discharges 79 | . . . . . . . . . 5 2 1 6 10 2 2 . 2 15 11 2 1 4 3 . . . . . 9 1 . 3 Parts Rejected 12 | . . . . . . . . . 1 . 1 . . . . . 1 3 1 . . 1 1 . . . . 1 2 . . . Parts Fused 7 | . . . . . . . . . 1 . . . 2 . . . . 1 2 1 . . . . . . . . . . . . Data Loss (minor) 72 | . . . . . . . . . 2 . 3 5 3 2 3 . 4 12 9 2 3 9 3 . . . . 3 6 1 2 . Data Loss (major) 27 | . . . . . . . . . 3 . 1 1 1 . 1 . . 3 9 . 2 1 2 . . . . 1 2 . . . Misfires 34 | . . . . . . . . . 3 3 . 1 1 . 5 . 1 2 5 1 1 2 4 . 1 . . . 4 . . . Alerts 26 | . . . . . . . . . 1 1 2 2 . . 3 . . 8 3 1 . 2 2 . . . . . 1 . . . Misdirections 5 | . . . . . . . . . . . . . . . . . . . 1 2 . . 1 . . . . . . . . 1 Weapon Failures 30 | . . . . . . . . . 2 . 1 . . 1 . . 1 8 3 . 2 7 5 . . . . . . . . . Overload Shots 3 | . . . . . . . . . . . . . . . . . . . . . . . . . 1 . 2 . . . . . Overflow Damage 1845 | . 1 16 . 76 34 115 . . 4 68 163 29 39 . 21 2 . 202 52 17 . 173 . 28 17 53 110 335 48 136 89 17 Projectiles 885 | . . 16 . . . . . . . . . . . . . 2 . 76 46 17 . 15 . 28 17 53 22 303 48 136 89 17 Explosions 612 | . 1 . . 76 34 . . . . 68 . 14 . . 21 . . 120 . . . 158 . . . . 88 32 . . . . Melee 348 | . . . . . . 115 . . 4 . 163 15 39 . . . . 6 6 . . . . . . . . . . . . . Knockbacks 167 | . . . . . . . . . 1 . 10 9 10 1 . . . 44 4 1 . . . . . . . 2 22 58 4 1 Impact 3 | . . . . . . . . . . . 2 . . . . . . 1 . . . . . . . . . . . . . . Kinetic 160 | . . . . . . . . . 1 . 8 9 10 1 . . . 42 4 1 . . . . . . . 2 20 57 4 1 Secondary 4 | . . . . . . . . . . . . . . . . . . 1 . . . . . . . . . . 2 1 . . Self-Inflicted Damage 1031 | . . 96 . 26 121 41 . . . 106 . 101 . . 17 . . 210 34 . . 101 . . . . 8 170 . . . . Shots 24 | . . 2 . 1 3 1 . . . 3 . 2 . . 1 . . 3 2 . . 1 . . . . 1 4 . . . . Rammed 50 | . 3 1 . 5 2 . 1 . 7 2 2 2 4 . . 1 . 4 2 . . 1 . 2 . . . 7 . 4 . . Targets Rammed 58 | 1 4 1 . 5 3 . 2 . 7 2 2 2 4 . . 2 . 4 2 . . 1 . 2 . . . 7 . 4 . 3 Kicked 5 | 1 1 . . . . . . . . . . . . . . . . . . . . . . . . . . . . . . 3 Crushed 3 | . . . . . 1 . 1 . . . . . . . . 1 . . . . . . . . . . . . . . . . Highest Temperature 446 | . 264 199 . 126 81 117 161 67 300 280 232 278 376 196 160 42 81 446 257 241 145 257 248 132 180 90 394 308 239 176 204 205 Average Temperature 74 | . 71 75 . 53 22 31 64 21 68 96 75 76 82 61 43 15 30 95 86 90 76 72 74 49 57 43 116 80 118 48 84 42 Received Heat Transfer 5399 | . 210 60 . . 601 392 234 249 316 504 49 78 84 . 105 . . 306 489 10 . 231 165 . 15 . 303 377 275 115 213 18 Effects 15 | . 2 . . . . . . . . 3 . . 2 . . . . 3 . 1 . 1 . . . . 3 . . . . . Shutdowns 2 | . . . . . . . . . . . . . . . . . . 1 . . . . . . . . 1 . . . . . Energy Bleed 4 | . . . . . . . . . . 1 . . . . . . . 1 . 1 . . . . . . 1 . . . . . Interference 6 | . 2 . . . . . . . . 2 . . 1 . . . . . . . . 1 . . . . . . . . . . Short Circuit 2 | . . . . . . . . . . . . . 1 . . . . 1 . . . . . . . . . . . . . . Damage (minor) 1 | . . . . . . . . . . . . . . . . . . . . . . . . . . . 1 . . . . . Siege Activations 111 | . . . . . . . . . . 5 3 5 4 1 4 3 . 10 8 . 3 8 5 3 4 1 8 17 9 10 . . Total Turns 1923 | . . . . . . . . . . 67 32 76 70 35 24 17 . 217 147 . 61 163 116 70 79 10 196 254 95 194 . . Longest Duration 91 | . . . . . . . . . . 27 25 28 36 35 11 7 . 74 49 . 44 57 57 32 54 10 91 50 18 42 . . Robots Corrupted 16 | . . . . . . . . . . 1 . . . . 1 1 . . . . . 2 . . . . . 5 . 4 . 2 Combat Hostiles 14 | . . . . . . . . . . 1 . . . . 1 1 . . . . . 1 . . . . . 4 . 4 . 2 Parts Fried 52 | . . . . . 2 1 . . 3 5 3 . . . 3 3 . 4 . . . 10 . . . . . 10 . 5 . 3 Impact Corruptions 21 | . . . . . . 4 . . 1 . 7 4 3 . . . . 1 1 . . . . . . . . . . . . . Robots Melted 12 | . . . . . . . . . . . . . . . . . . . . . . 2 . . . 1 4 5 . . . . Combat Hostiles 11 | . . . . . . . . . . . . . . . . . . . . . . 2 . . . 1 4 4 . . . . Parts Melted 42 | . 5 1 . . . . . . . . . . . . . . . . . . . 4 . 2 . 4 13 13 . . . . Heat Transferred 15191 | . 1739 962 . 148 . . . . 100 296 . . 37 . 50 100 185 1314 . . . 850 . 962 688 444 2153 4183 . 592 388 . Parts Sabotaged . | . . . . . . . . . . . . . . . . . . . . . . . . . . . . . . . . . Parts Stolen 3 | . . . . . . . . . . . . 3 . . . . . . . . . . . . . . . . . . . . Parts Stripped . | . . . . . . . . . . . . . . . . . . . . . . . . . . . . . . . . . Power Chain Reactions 5 | . . . . . . . . . 1 . . . . . 1 1 . 1 . . . . . . . . . 1 . . . . Missiles Intercepted . | . . . . . . . . . . . . . . . . . . . . . . . . . . . . . . . . . Alert | -11 -10 -10 -10 -9 -8 -8 -8 -8 -7 -7 -7 -7 -7 -7 -6 -6 -6 -6 -6 -6 -6 -6 -6 -5 -5 -4 -4 -3 -3 -2 -2 -2 ------- Run | Jun Mat Min Exi Min Mat Gar Mat Gar Fac Gar Fac Low Low Dat Pro Fac Was Fac Ext Cet Arc Hub Gar Fac Gar Fac Gar Res Gar Res Gar Res Peak Influence 1104 | 15 206 90 . 181 331 1014 627 743 505 1022 558 . . . . 531 127 352 243 527 294 945 852 447 404 293 725 954 1104 813 293 110 Initial 708 | . 9 5 . . . 163 494 329 389 261 536 . . . . 450 110 88 123 136 130 32 590 447 45 205 170 407 708 621 191 53 Average 335 | 6 86 29 . 48 123 556 504 544 318 636 414 . . . . 409 121 134 128 289 219 512 776 117 248 231 491 595 915 429 221 66 Maximum Alert Level 4 | . 1 . . . 1 3 2 3 2 3 2 . . . . 2 . 1 1 2 1 3 3 2 2 1 3 3 4 3 1 . Low Security (%) 38 | 100 92 100 . 100 65 11 . . 6 . . . . . . 4 100 64 75 9 30 14 . 93 33 . 8 1 . 20 35 100 Level 1 26 | . 7 . . . 34 23 15 13 72 20 57 . . . . 30 . 35 24 82 69 12 . 2 65 100 17 15 . 34 64 . Level 2 19 | . . . . . . 33 84 64 20 39 42 . . . . 64 . . . 7 . 41 23 4 . . 65 41 . 31 . . Level 3 14 | . . . . . . 31 . 21 . 40 . . . . . . . . . . . 31 76 . . . 9 41 98 13 . . Level 4 . | . . . . . . . . . . . . . . . . . . . . . . . . . . . . . 1 . . . Level 5 . | . . . . . . . . . . . . . . . . . . . . . . . . . . . . . . . . . High Security . | . . . . . . . . . . . . . . . . . . . . . . . . . . . . . . . . . Max Security . | . . . . . . . . . . . . . . . . . . . . . . . . . . . . . . . . . Squads Dispatched 101 | . 5 . . . 6 . 9 . 13 . 3 . . . . 2 . 10 2 . . 6 . 4 . 3 . 18 . 13 . 7 Investigation 25 | . 3 . . . 2 . 2 . 6 . 2 . . . . 1 . 1 . . . . . 1 . 1 . 4 . 2 . . Extermination 19 | . . . . . . . . . 4 . 1 . . . . 1 . 3 . . . 1 . 1 . 1 . 3 . 3 . 1 Reinforcement 25 | . 2 . . . 3 . 1 . . . . . . . . . . 1 2 . . 5 . . . . . 6 . 3 . 2 Assault 8 | . . . . . . . 3 . . . . . . . . . . . . . . . . . . . . 3 . 1 . 1 Garrison 15 | . . . . . 1 . 3 . 3 . . . . . . . . 3 . . . . . 2 . 1 . . . 2 . . Intercept 9 | . . . . . . . . . . . . . . . . . . 2 . . . . . . . . . 2 . 2 . 3 Searches Triggered 1 | . . . . . . . . . . . . . . . . 1 . . . . . . . . . . . . . . . . Construction Impeded 9 | . . . . . 1 . . . . . . . . . . . . 1 . . . 1 . . . . . 4 . 2 . . Haulers Reinforced 1 | . . . . . . . . . . . . . . . . . . . . . . . . . . . . . . . . 1 Active Scanning Responses . | . . . . . . . . . . . . . . . . . . . . . . . . . . . . . . . . . Cargo Convoy Interrupts 1 | . . . . . . . . . . . 1 . . . . . . . . . . . . . . . . . . . . . Alert ID Control Effect 9 | . . . . . . . . . . . . . . . . . . . . . . . 1 . . . . 2 2 2 2 . Stealth | -11 -10 -10 -10 -9 -8 -8 -8 -8 -7 -7 -7 -7 -7 -7 -6 -6 -6 -6 -6 -6 -6 -6 -6 -5 -5 -4 -4 -3 -3 -2 -2 -2 --------- Run | Jun Mat Min Exi Min Mat Gar Mat Gar Fac Gar Fac Low Low Dat Pro Fac Was Fac Ext Cet Arc Hub Gar Fac Gar Fac Gar Res Gar Res Gar Res Distress Signals 31 | . 2 . . 1 4 1 1 . 3 . 1 . . . . . . 1 2 2 . 2 . 2 . 1 . 7 . 1 . . Communications Jammed . | . . . . . . . . . . . . . . . . . . . . . . . . . . . . . . . . . Distress Signals . | . . . . . . . . . . . . . . . . . . . . . . . . . . . . . . . . . Times Spotted 693 | . 34 17 . 11 38 22 17 16 32 30 10 11 10 4 11 6 4 32 26 15 32 36 24 16 14 9 22 74 37 54 16 13 Peak Tracking Total 8 | . 3 5 . 3 8 4 5 4 4 7 3 5 5 3 4 3 2 5 4 5 1 7 7 5 6 4 6 8 7 6 5 7 Tactical Retreats 38 | . 7 2 . 1 . 1 1 1 . 1 . . . . . 1 . 2 . . . 3 1 . 1 . 2 9 4 1 . . Traps | -11 -10 -10 -10 -9 -8 -8 -8 -8 -7 -7 -7 -7 -7 -7 -6 -6 -6 -6 -6 -6 -6 -6 -6 -5 -5 -4 -4 -3 -3 -2 -2 -2 ------- Run | Jun Mat Min Exi Min Mat Gar Mat Gar Fac Gar Fac Low Low Dat Pro Fac Was Fac Ext Cet Arc Hub Gar Fac Gar Fac Gar Res Gar Res Gar Res Traps Triggered 50 | . 2 . . . . 9 3 3 2 4 1 . 1 . . 1 . 1 1 . . 2 2 . . . 4 3 6 2 2 1 Indirectly 2 | . . . . . . . . . . . . . . . . . . . . . . 2 . . . . . . . . . . Trap Hack Attempts . | . . . . . . . . . . . . . . . . . . . . . . . . . . . . . . . . . Triggered . | . . . . . . . . . . . . . . . . . . . . . . . . . . . . . . . . . Disarmed . | . . . . . . . . . . . . . . . . . . . . . . . . . . . . . . . . . Reprogrammed . | . . . . . . . . . . . . . . . . . . . . . . . . . . . . . . . . . Reused . | . . . . . . . . . . . . . . . . . . . . . . . . . . . . . . . . . Traps Extracted . | . . . . . . . . . . . . . . . . . . . . . . . . . . . . . . . . . Installed . | . . . . . . . . . . . . . . . . . . . . . . . . . . . . . . . . . Triggered 7 | . . . . . . . . . . . 2 2 1 . . . . . . . . 1 . . . . . . 1 . . . Machines | -11 -10 -10 -10 -9 -8 -8 -8 -8 -7 -7 -7 -7 -7 -7 -6 -6 -6 -6 -6 -6 -6 -6 -6 -5 -5 -4 -4 -3 -3 -2 -2 -2 ---------- Run | Jun Mat Min Exi Min Mat Gar Mat Gar Fac Gar Fac Low Low Dat Pro Fac Was Fac Ext Cet Arc Hub Gar Fac Gar Fac Gar Res Gar Res Gar Res Machines Disabled 78 | . 3 . . . 2 3 . 4 4 7 2 . . . . 4 . 9 3 . 4 10 1 . 5 1 7 4 3 1 1 . Max in Single Turn 6 | . 2 . . . 1 1 . 2 2 1 . . . . . 4 . 4 1 . 1 6 1 . 1 . 1 1 1 1 1 . Garrison Access 6 | . . . . . . . . . 1 . 1 . . . . . . 1 . . . . . . . . . 1 . 1 . 1 Garrison Relay 20 | . . . . . . 3 . 2 . 5 . . . . . . . . . . . . 1 . 1 . 4 . 3 . 1 . Network Hub 1 | . . . . . . . . . . . . . . . . . . . . . . 1 . . . . . . . . . . Machines Repaired . | . . . . . . . . . . . . . . . . . . . . . . . . . . . . . . . . . Machines Sabotaged . | . . . . . . . . . . . . . . . . . . . . . . . . . . . . . . . . . Overloaded Fab Kills . | . . . . . . . . . . . . . . . . . . . . . . . . . . . . . . . . . Hacking | -11 -10 -10 -10 -9 -8 -8 -8 -8 -7 -7 -7 -7 -7 -7 -6 -6 -6 -6 -6 -6 -6 -6 -6 -5 -5 -4 -4 -3 -3 -2 -2 -2 --------- Run | Jun Mat Min Exi Min Mat Gar Mat Gar Fac Gar Fac Low Low Dat Pro Fac Was Fac Ext Cet Arc Hub Gar Fac Gar Fac Gar Res Gar Res Gar Res Machines Accessed 121 | . 8 1 2 1 11 2 5 3 11 2 8 . 2 3 . 5 . 10 13 1 . 4 2 6 1 5 1 6 1 5 1 1 Terminals 69 | . 5 . . . 7 2 4 3 6 2 2 . . . . 2 . 4 13 1 . 3 2 1 1 2 1 3 1 2 1 1 Fabricators 10 | . . . . . . . . . 2 . 2 . . . . 1 . 2 . . . . . 1 . 1 . . . 1 . . Repair Stations 11 | . 1 . . . 2 . . . . . 2 . . . . . . 1 . . . . . 2 . 1 . 1 . 1 . . Recycling Units 7 | . 2 . . . 1 . . . . . 1 . . . . 1 . 2 . . . . . . . . . . . . . . Scanalyzers 3 | . . . . . . . . . 1 . . . . . . 1 . . . . . . . 1 . . . . . . . . Garrison Access 12 | . . . . . 1 . 1 . 2 . 1 . . . . . . 1 . . . 1 . 1 . 1 . 2 . 1 . . Total Hacks 385 | . 35 1 2 1 26 5 12 8 30 4 16 . 8 20 . 22 . 22 27 3 . 15 3 31 4 45 6 21 2 10 3 3 Successful 194 | . 16 1 2 1 12 2 4 4 10 2 6 . 8 20 . 14 . 12 14 . . 5 2 25 1 23 . 6 1 2 1 . Failed 191 | . 19 . . . 14 3 8 4 20 2 10 . . . . 8 . 10 13 3 . 10 1 6 3 22 6 15 1 8 2 3 Catastrophic 53 | . 2 . . . 1 2 1 . 7 . 2 . . . . 3 . 5 4 2 . 2 . . . 5 3 7 1 4 . 2 Database Lockouts . | . . . . . . . . . . . . . . . . . . . . . . . . . . . . . . . . . Manual 157 | . 7 . 1 . 11 1 5 3 14 1 5 . . . . 13 . 9 10 1 . 10 . 12 1 36 6 8 . . . 3 Terminals 215 | . 24 . . . 16 5 10 8 11 4 4 . . . . 12 . 11 27 3 . 12 3 9 4 24 6 11 2 3 3 3 Fabricators 31 | . . . . . . . . . 7 . 4 . . . . 2 . 4 . . . . . 7 . 4 . . . 3 . . Repair Stations 35 | . 5 . . . 7 . . . . . 4 . . . . . . 2 . . . . . 8 . 3 . 4 . 2 . . Recycling Units 16 | . 6 . . . 1 . . . . . 2 . . . . 5 . 2 . . . . . . . . . . . . . . Scanalyzers 10 | . . . . . . . . . 2 . . . . . . 3 . . . . . . . 5 . . . . . . . . Garrison Access 46 | . . . . . 2 . 2 . 10 . 2 . . . . . . 3 . . . 3 . 2 . 14 . 6 . 2 . . Terminal Hacks 88 | . 8 1 2 1 2 2 2 3 . 2 . . 8 20 . 5 . 3 11 . . 3 2 4 1 5 . 1 1 . 1 . Record 10 | . . . 1 . . . . . . . . . 7 2 . . . . . . . . . . . . . . . . . . Part Schematic 11 | . . . . . . . . . . . . . . 9 . . . . 1 . . . . . . 1 . . . . . . Robot Schematic 7 | . . . . . . . . . . . . . . 6 . 1 . . . . . . . . . . . . . . . . Robot Analysis 2 | . 2 . . . . . . . . . . . . . . . . . . . . . . . . . . . . . . . Prototype ID Bank 5 | . 1 . . . 1 . . . . . . . . 3 . . . . . . . . . . . . . . . . . . Open Door 15 | . . 1 . 1 . 1 . . . . . . 1 . . . . 1 8 . . . 1 . . . . . . . 1 . Branch Access Points 2 | . . . . . . . . . . . . . . . . 1 . . . . . . . 1 . . . . . . . . Emergency Access Points 6 | . . . . . . 1 . 1 . 1 . . . . . . . . . . . . 1 . 1 . . . 1 . . . Terminal Index 1 | . 1 . . . . . . . . . . . . . . . . . . . . . . . . . . . . . . . Alert Level 1 | . 1 . . . . . . . . . . . . . . . . . . . . . . . . . . . . . . . Unreport Threat 4 | . 1 . . . . . 1 . . . . . . . . . . . . . . . . 2 . . . . . . . . Locate Traps 8 | . . . . . 1 . . . . . . . . . . . . . 2 . . 2 . . . 2 . 1 . . . . Patrol Status 2 | . . . . . . . . . . . . . . . . 1 . . . . . . . . . 1 . . . . . . Transport Status 1 | . . . . . . . . . . . . . . . . 1 . . . . . . . . . . . . . . . . Hauler Manifests 3 | . . . . . . . 1 . . . . . . . . 1 . 1 . . . . . . . . . . . . . . Zone Layout 6 | . 2 . . . . . . . . . . . . . . . . 1 . . . 1 . 1 . 1 . . . . . . Garrison Registry 1 | . . . . . . . . 1 . . . . . . . . . . . . . . . . . . . . . . . . Patrol Navigation 2 | . . . . . . . . 1 . 1 . . . . . . . . . . . . . . . . . . . . . . EX-Prototype ID Bank 1 | . . . 1 . . . . . . . . . . . . . . . . . . . . . . . . . . . . . Fabricator Hacks 10 | . . . . . . . . . 1 . . . . . . 1 . 3 . . . . . 3 . 2 . . . . . . Network Status 3 | . . . . . . . . . 1 . . . . . . . . . . . . . . 1 . 1 . . . . . . Load Schematic 2 | . . . . . . . . . . . . . . . . . . 1 . . . . . 1 . . . . . . . . Build 5 | . . . . . . . . . . . . . . . . 1 . 2 . . . . . 1 . 1 . . . . . . Repair Station Hacks 21 | . 4 . . . 5 . . . . . 2 . . . . . . 1 . . . . . 6 . 2 . 1 . . . . Scan Component 12 | . 2 . . . 3 . . . . . 1 . . . . . . 1 . . . . . 3 . 1 . 1 . . . . Repair 9 | . 2 . . . 2 . . . . . 1 . . . . . . . . . . . . 3 . 1 . . . . . . Recycling Unit Hacks 6 | . 1 . . . 1 . . . . . 1 . . . . 1 . 2 . . . . . . . . . . . . . . Retrieve Components 6 | . 1 . . . 1 . . . . . 1 . . . . 1 . 2 . . . . . . . . . . . . . . Scanalyzer 7 | . . . . . . . . . 2 . . . . . . 2 . . . . . . . 3 . . . . . . . . Insert Component 4 | . . . . . . . . . 1 . . . . . . 1 . . . . . . . 2 . . . . . . . . Analyze 3 | . . . . . . . . . 1 . . . . . . 1 . . . . . . . 1 . . . . . . . . Garrison Access Hacks 21 | . . . . . 1 . 2 . 4 . 2 . . . . . . 2 . . . 1 . 2 . 2 . 3 . 2 . . Unlock Access 9 | . . . . . 1 . 1 . 1 . . . . . . . . . . . . 1 . 1 . 1 . 2 . 1 . . Seal Access 3 | . . . . . . . . . 1 . 1 . . . . . . 1 . . . . . . . . . . . . . . Coupler Status 9 | . . . . . . . 1 . 2 . 1 . . . . . . 1 . . . . . 1 . 1 . 1 . 1 . . Unauthorized Hacks 41 | . 3 . . . 3 . . 1 3 . 1 . . . . 5 . 1 3 . . 1 . 7 . 12 . 1 . . . . Terminals 19 | . 1 . . . 2 . . 1 . . . . . . . 2 . 1 3 . . 1 . 2 . 6 . . . . . . Track 4 | . . . . . . . . . . . . . . . . 1 . . 1 . . . . . . 2 . . . . . . Assimilate 1 | . . . . . . . . . . . . . . . . . . 1 . . . . . . . . . . . . . . Botnet 6 | . . . . . 1 . . 1 . . . . . . . . . . 1 . . . . 1 . 2 . . . . . . Disrupt 2 | . . . . . . . . . . . . . . . . . . . 1 . . . . . . 1 . . . . . . Operators 6 | . 1 . . . 1 . . . . . . . . . . 1 . . . . . 1 . 1 . 1 . . . . . . Fabricators 7 | . . . . . . . . . . . 1 . . . . 1 . . . . . . . 4 . 1 . . . . . . Report 1 | . . . . . . . . . . . . . . . . . . . . . . . . 1 . . . . . . . . Prioritize 2 | . . . . . . . . . . . . . . . . . . . . . . . . 1 . 1 . . . . . . Liberate 3 | . . . . . . . . . . . 1 . . . . 1 . . . . . . . 1 . . . . . . . . Haulers 1 | . . . . . . . . . . . . . . . . . . . . . . . . 1 . . . . . . . . Repair Stations 1 | . . . . . . . . . . . . . . . . . . . . . . . . 1 . . . . . . . . Mechanics 1 | . . . . . . . . . . . . . . . . . . . . . . . . 1 . . . . . . . . Recycling Units 4 | . 2 . . . . . . . . . . . . . . 2 . . . . . . . . . . . . . . . . Recyclers 1 | . . . . . . . . . . . . . . . . 1 . . . . . . . . . . . . . . . . Mask 1 | . . . . . . . . . . . . . . . . 1 . . . . . . . . . . . . . . . . Tunnel 2 | . 2 . . . . . . . . . . . . . . . . . . . . . . . . . . . . . . . Scanalyzers . | . . . . . . . . . . . . . . . . . . . . . . . . . . . . . . . . . Garrison Access 10 | . . . . . 1 . . . 3 . . . . . . . . . . . . . . . . 5 . 1 . . . . Broadcast 2 | . . . . . . . . . 1 . . . . . . . . . . . . . . . . 1 . . . . . . Restock 2 | . . . . . . . . . 1 . . . . . . . . . . . . . . . . 1 . . . . . . Reprogram 4 | . . . . . 1 . . . 1 . . . . . . . . . . . . . . . . 1 . 1 . . . . Intercept 1 | . . . . . . . . . . . . . . . . . . . . . . . . . . 1 . . . . . . Watchers 1 | . . . . . . . . . . . . . . . . . . . . . . . . . . 1 . . . . . . Data Cores Recovered . | . . . . . . . . . . . . . . . . . . . . . . . . . . . . . . . . . Used . | . . . . . . . . . . . . . . . . . . . . . . . . . . . . . . . . . Hacking Detections 96 | . 7 . . . 10 2 5 3 11 2 8 . . . . 5 . 6 9 1 . 4 1 4 1 4 1 6 1 4 . 1 Full Trace Events 16 | . 1 . . . 1 . 2 . 3 . 2 . . . . 1 . 1 . . . . . 1 . . . 3 . 1 . . Feedback Events . | . . . . . . . . . . . . . . . . . . . . . . . . . . . . . . . . . Feedback Blocked . | . . . . . . . . . . . . . . . . . . . . . . . . . . . . . . . . . Robot Schematics Acquired 7 | . . . . . . . . . . . . . . 6 . 1 . . . . . . . . . . . . . . . . Robots Built 8 | . . . . . . . . . . . . . . . . 1 . 5 . . . . . 2 . . . . . . . . Authchips 1 | . . . . . . . . . . . . . . . . . . 1 . . . . . . . . . . . . . . Time 213 | . . . . . . . . . . . . . . . . 58 . 88 . . . . . 67 . . . . . . . . Total Robot Build Rating 31 | . . . . . . . . . . . . . . . . 3 . 20 . . . . . 8 . . . . . . . . Part Schematics Acquired 14 | . . . . . . . . . 1 . . . . 9 . 1 . . 1 . . . . 1 . 1 . . . . . . Parts Built 2 | . . . . . . . . . . . . . . . . . . . . . . . . . . 2 . . . . . . Authchips . | . . . . . . . . . . . . . . . . . . . . . . . . . . . . . . . . . Time 64 | . . . . . . . . . . . . . . . . . . . . . . . . . . 64 . . . . . . Total Part Build Rating 16 | . . . . . . . . . . . . . . . . . . . . . . . . . . 16 . . . . . . Parts Repaired 9 | . 2 . . . 2 . . . . . 1 . . . . . . . . . . . . 3 . 1 . . . . . . Time 519 | . 52 . . . 58 . . . . . 31 . . . . . . . . . . . . 270 . 108 . . . . . . Parts Recycled . | . . . . . . . . . . . . . . . . . . . . . . . . . . . . . . . . . Recycled Matter . | . . . . . . . . . . . . . . . . . . . . . . . . . . . . . . . . . Retrieved Matter . | . . . . . . . . . . . . . . . . . . . . . . . . . . . . . . . . . Retrieved Components 23 | . 9 . . . 10 . . . . . 1 . . . . 1 . 2 . . . . . . . . . . . . . . Parts Scanalyzed 4 | . . . . . . . . . 1 . . . . . . 1 . . . . . . . 2 . . . . . . . . Part Schematics Acquired 3 | . . . . . . . . . 1 . . . . . . 1 . . . . . . . 1 . . . . . . . . Parts Damaged . | . . . . . . . . . . . . . . . . . . . . . . . . . . . . . . . . . Bothacking | -11 -10 -10 -10 -9 -8 -8 -8 -8 -7 -7 -7 -7 -7 -7 -6 -6 -6 -6 -6 -6 -6 -6 -6 -5 -5 -4 -4 -3 -3 -2 -2 -2 ------------ Run | Jun Mat Min Exi Min Mat Gar Mat Gar Fac Gar Fac Low Low Dat Pro Fac Was Fac Ext Cet Arc Hub Gar Fac Gar Fac Gar Res Gar Res Gar Res Used RIF Installer 7 | . . . . . . 1 . 1 . 1 . . . . . . . . . . . . 1 . 1 . 1 . 1 . . . Code Merge 1 | . . . . . . . . . . . . . . . . . . . . . . . . . . . . . 1 . . . Threat Obfuscator 2 | . . . . . . . . 1 . . . . . . . . . . . . . . . . 1 . . . . . . . Watcher Feeds 1 | . . . . . . . . . . . . . . . . . . . . . . . 1 . . . . . . . . . Alert ID Control 1 | . . . . . . . . . . 1 . . . . . . . . . . . . . . . . . . . . . . Program Shield 1 | . . . . . . . . . . . . . . . . . . . . . . . . . . . 1 . . . . . Robots Hacked 76 | . . . . . . . . . 7 5 4 . . 1 . 2 6 1 1 1 . . 5 1 3 4 2 7 9 10 7 . Non-combat 22 | . . . . . . . . . 6 . 4 . . . . 2 . 1 . . . . . 1 . 4 . 1 . 3 . . Combat 54 | . . . . . . . . . 1 5 . . . 1 . . 6 . 1 1 . . 5 . 3 . 2 6 9 7 7 . Robot Hacks Applied 87 | . . . . . . . . . 10 6 5 . . 1 . 2 7 1 1 1 . . 5 1 3 4 2 8 9 14 7 . parse_system 8 | . . . . . . . . . 1 1 . . . 1 . . 1 1 1 1 . . . . . . . 1 . . . . find_chute 1 | . . . . . . . . . . . . . . . . . . . . . . . . . . 1 . . . . . . ignore_repairs 1 | . . . . . . . . . . . 1 . . . . . . . . . . . . . . . . . . . . . map_walls 2 | . . . . . . . . . 1 . 1 . . . . . . . . . . . . . . . . . . . . . randomize_corridors 1 | . . . . . . . . . . . 1 . . . . . . . . . . . . . . . . . . . . . drop_inventory 10 | . . . . . . . . . 1 . 1 . . . . 1 . . . . . . . 1 . 3 . 1 . 2 . . deconstruct_bot 1 | . . . . . . . . . 1 . . . . . . . . . . . . . . . . . . . . . . . purge_threat 4 | . . . . . . . . . . . . . . . . . . . . . . . . . . . . . . 4 . . locate_traps 1 | . . . . . . . . . . . . . . . . . . . . . . . . . . . . . . 1 . . map_route 2 | . . . . . . . . . 2 . . . . . . . . . . . . . . . . . . . . . . . ignore_targets 6 | . . . . . . . . . . . . . . . . . 6 . . . . . . . . . . . . . . . find_garrison 1 | . . . . . . . . . 1 . . . . . . . . . . . . . . . . . . . . . . . disrupt_area 1 | . . . . . . . . . . . . . . . . . . . . . . . . . . . . . 1 . . . amplify_resonance 10 | . . . . . . . . . . . . . . . . . . . . . . . 2 . . . . 1 4 3 . . overwrite_iff 16 | . . . . . . . . . 1 3 . . . . . . . . . . . . 2 . 1 . . . 3 2 4 . streamctrl_low 1 | . . . . . . . . . 1 . . . . . . . . . . . . . . . . . . . . . . . streamctrl_high 2 | . . . . . . . . . . 1 . . . . . . . . . . . . . . . . . . . . 1 . formatsys_low 3 | . . . . . . . . . 1 . 1 . . . . 1 . . . . . . . . . . . . . . . . formatsys_high 16 | . . . . . . . . . . 1 . . . . . . . . . . . . 1 . 2 . 2 5 1 2 2 . Relay Couplers Released 95 | . . . . . . 14 . 8 . 23 . . . . . . . . . . . . 5 . 4 . 16 5 14 . 4 2 Machine Destruction 84 | . . . . . . 10 . 8 . 19 . . . . . . . . . . . . 5 . 4 . 16 2 14 . 4 2 Programmers 11 | . . . . . . 4 . . . 4 . . . . . . . . . . . . . . . . . 3 . . . . Attached 38 | . . . . . . . . . 3 2 1 . . . . 1 . . . . . . 4 . 2 . 5 5 8 2 5 . Merged Code Value 46 | . . . . . . . . . . . . . . . . . . . . . . . . . . . . . 46 . . . Fabnet Peak Effective % . | . . . . . . . . . . . . . . . . . . . . . . . . . . . . . . . . . Robots Rewired 22 | . . . . . . . . 3 . . . 1 . . . . . . 15 . . . . 1 2 . . . . . . . Allies Hacked 7 | . . . . . . . . . . 1 1 . 1 . . . . 2 . . . . . . . 2 . . . . . . Hacks Repelled . | . . . . . . . . . . . . . . . . . . . . . . . . . . . . . . . . . Allies | -11 -10 -10 -10 -9 -8 -8 -8 -8 -7 -7 -7 -7 -7 -7 -6 -6 -6 -6 -6 -6 -6 -6 -6 -5 -5 -4 -4 -3 -3 -2 -2 -2 -------- Run | Jun Mat Min Exi Min Mat Gar Mat Gar Fac Gar Fac Low Low Dat Pro Fac Was Fac Ext Cet Arc Hub Gar Fac Gar Fac Gar Res Gar Res Gar Res Total Allies 106 | . . 3 . . 1 1 . 3 4 7 1 1 . . . 2 . 6 29 5 . . 3 3 7 2 2 7 6 4 9 . Largest Group 23 | . . 3 3 3 1 1 . 3 2 4 4 3 3 . . 2 2 4 23 23 14 6 2 3 4 4 2 5 3 1 3 . Highest-Rated Group 1016 | . . 40 40 40 15 20 . 30 77 165 188 65 67 . . 36 36 116 790 1016 852 514 24 103 201 178 98 274 204 84 180 . Highest-Rated Ally 159 | . . 16 16 16 15 20 . 10 54 80 80 23 25 . . 26 22 37 159 159 159 96 12 37 116 51 49 89 95 84 69 . Total Orders 101 | . . . 3 . . . . . 5 15 15 14 4 . . 2 . . 4 4 2 19 . . 2 . 4 5 . . 1 2 STAY 35 | . . . 2 . . . . . . 6 4 3 . . . 1 . . 2 3 1 6 . . 1 . 2 4 . . . . ROAM 1 | . . . . . . . . . . . . . . . . . . . . . . . . . . . . . . . 1 . FOLLOW 27 | . . . 1 . . . . . 1 3 4 5 1 . . 1 . . 2 1 1 3 . . 1 . 2 1 . . . . AID 26 | . . . . . . . . . 4 6 7 6 3 . . . . . . . . . . . . . . . . . . . EXPLORE 8 | . . . . . . . . . . . . . . . . . . . . . . 6 . . . . . . . . . 2 RETURN 4 | . . . . . . . . . . . . . . . . . . . . . . 4 . . . . . . . . . . Ally Attacks 684 | . . 3 . 21 . 9 . 11 5 35 19 . 4 . . . . 20 109 136 39 52 12 13 31 20 . 53 46 17 29 . Total Damage 20144 | . . 13 . 230 . 290 . 197 31 1331 812 . 65 . . . . 525 2195 3744 1068 1888 108 266 1950 628 . 1979 1191 649 984 . Kills 116 | . . 1 . 6 . 3 . 1 . 8 9 . 1 . . . . 2 11 22 5 10 1 3 11 3 . 6 7 4 2 . Allies Corrupted 13 | . . . . . . . . . . . 1 . 1 . . . 1 . . . . 3 . . 1 3 . 2 . 1 . . Allies Melted 4 | . . . . . . . . . . . 1 . . . . . . 1 . . . . . . . . . 1 . . 1 . Intel | -11 -10 -10 -10 -9 -8 -8 -8 -8 -7 -7 -7 -7 -7 -7 -6 -6 -6 -6 -6 -6 -6 -6 -6 -5 -5 -4 -4 -3 -3 -2 -2 -2 ------- Run | Jun Mat Min Exi Min Mat Gar Mat Gar Fac Gar Fac Low Low Dat Pro Fac Was Fac Ext Cet Arc Hub Gar Fac Gar Fac Gar Res Gar Res Gar Res Robot Analysis Total 133 | . 2 . . . . . . . . . . . . 131 . . . . . . . . . . . . . . . . . . Derelict Logs Recovered 8 | . . 1 . 1 . . . . . . . 2 3 . 1 . . . . . . . . . . . . . . . . . Drone Launches 6 | . . . . . . . . . . . . . . . . . . . . . . 4 . . . . . . . . . 2 Drone Recoveries 2 | . . . . . . . . . . . . . . . . . . . . . . 2 . . . . . . . . . . Exploration | -11 -10 -10 -10 -9 -8 -8 -8 -8 -7 -7 -7 -7 -7 -7 -6 -6 -6 -6 -6 -6 -6 -6 -6 -5 -5 -4 -4 -3 -3 -2 -2 -2 ------------- Run | Jun Mat Min Exi Min Mat Gar Mat Gar Fac Gar Fac Low Low Dat Pro Fac Was Fac Ext Cet Arc Hub Gar Fac Gar Fac Gar Res Gar Res Gar Res Turns Passed 39136 | 107 2487 1513 644 1646 2108 1526 814 1033 2408 1606 1492 1847 1814 435 1353 541 368 2122 1786 413 537 974 700 859 768 386 1105 1898 1499 1431 527 389 Spaces Moved 14848 | 56 839 492 361 603 648 499 251 354 786 530 653 983 983 199 751 199 137 754 776 195 212 332 266 255 297 135 417 524 490 385 169 317 Core 180 | 10 . . . . . . . . . . . . . . . . . . . . . . . . . . . . . . 61 109 Treads 12296 | . 448 383 . 341 648 499 251 354 786 530 653 983 983 199 751 199 137 754 135 . 60 332 266 255 297 135 417 524 490 385 101 . Legs 534 | 46 391 . . . . . . . . . . . . . . . . . . . . . . . . . . . . . . 97 Wheels 1720 | . . 109 361 262 . . . . . . . . . . . . . . 641 195 152 . . . . . . . . . . . Hover . | . . . . . . . . . . . . . . . . . . . . . . . . . . . . . . . . . Flight 118 | . . . . . . . . . . . . . . . . . . . . . . . . . . . . . . . 7 111 Fastest Speed 25 | 50 120 175 175 175 240 240 240 240 240 170 170 170 170 170 170 170 170 160 160 160 160 160 160 160 160 160 160 240 240 240 25 50 Average Speed 204 | 107 243 287 175 257 240 240 240 240 240 218 170 170 170 170 170 237 237 222 167 162 176 160 160 175 162 184 188 241 240 240 206 76 Slowest Speed 480 | 120 480 320 175 480 240 240 240 240 240 270 170 170 170 170 170 255 255 255 240 175 240 160 160 240 240 245 240 245 243 240 320 120 Overloaded Moves . | . . . . . . . . . . . . . . . . . . . . . . . . . . . . . . . . . Propulsion Burnouts . | . . . . . . . . . . . . . . . . . . . . . . . . . . . . . . . . . Robots Hopped 1 | . . . . . . . . . . . . . . . . . . . . . . . . . . . . . . . . 1 Cave-ins Triggered . | . . . . . . . . . . . . . . . . . . . . . . . . . . . . . . . . . Exploration Rate (%) 54 | 4 97 79 70 92 63 75 27 60 31 68 25 97 98 79 95 10 96 24 85 72 96 47 55 11 42 11 44 22 63 20 33 12 Regions Visited 32 Branch Regions 11 Pre-discovered Areas 27 | . 2 . 1 1 . . . . . . . . 1 22 . . . . . . . . . . . . . . . . . . Known Exits Taken 11 | . . . . . 1 . 1 . 1 . 1 . 1 . . . . 1 . . . 1 . 1 . 1 . 1 . 1 . . Unknown Exits Taken 11 | 1 1 1 1 1 . . . . . . . 1 . 1 1 . . . 1 1 1 . . . . . . . . . . . Scrap Searched 9 | . . 1 . 1 . . . . . . . 2 3 . 2 . . . . . . . . . . . . . . . . . Spaces Dug 249 | . 2 13 . 10 2 26 1 4 3 16 11 28 1 . 24 1 3 7 1 2 . 12 20 4 3 6 8 24 6 11 . . Terrain Destroyed 1114 | . 4 30 . 37 42 28 1 16 9 36 12 47 3 . 95 15 5 77 71 2 1 224 46 9 4 9 71 139 22 52 2 5 Melee 61 | . . . . . . 18 1 4 3 7 11 . 1 . . 1 . 2 1 2 . 3 4 1 2 . . . . . . . Projectile 202 | . 2 . . . 2 . . 1 2 7 1 . 2 . 2 . 5 17 6 . 1 12 1 8 2 9 5 37 22 52 2 4 AOE 850 | . 2 30 . 37 40 10 . 11 4 22 . 47 . . 93 14 . 58 64 . . 209 41 . . . 66 102 . . . . Terrain Rammed . | . . . . . . . . . . . . . . . . . . . . . . . . . . . . . . . . . Walls Destroyed . | . . . . . . . . . . . . . . . . . . . . . . . . . . . . . . . . . Machines Disabled . | . . . . . . . . . . . . . . . . . . . . . . . . . . . . . . . . . Actions | -11 -10 -10 -10 -9 -8 -8 -8 -8 -7 -7 -7 -7 -7 -7 -6 -6 -6 -6 -6 -6 -6 -6 -6 -5 -5 -4 -4 -3 -3 -2 -2 -2 --------- Run | Jun Mat Min Exi Min Mat Gar Mat Gar Fac Gar Fac Low Low Dat Pro Fac Was Fac Ext Cet Arc Hub Gar Fac Gar Fac Gar Res Gar Res Gar Res Total 20995 | 80 1125 541 374 676 1041 677 374 474 1136 821 968 1108 1080 259 799 249 162 1043 1166 278 319 632 474 614 498 243 624 962 717 740 316 425 Wait 2917 | . 130 8 13 44 173 49 45 32 143 99 232 74 58 13 23 24 2 146 190 38 38 153 113 287 90 70 70 189 85 170 83 33 Move 14819 | 56 838 491 360 602 647 498 251 353 785 529 652 982 982 198 750 199 136 753 775 194 211 331 265 255 296 134 416 523 489 385 168 315 Hop 1 | . . . . . . . . . . . . . . . . . . . . . . . . . . . . . . . . 1 Pick Up 250 | 5 31 2 1 5 36 7 3 8 15 14 6 . 2 6 1 1 2 11 7 6 3 9 7 10 8 1 7 15 8 11 . 2 Fast Attach 173 | 7 6 . . 1 13 . 6 1 4 3 6 2 . 1 . . 1 9 6 3 4 8 5 2 5 2 12 14 16 9 9 18 Attach 170 | . 6 3 . 2 18 3 1 4 7 5 . 2 1 4 . 2 1 11 7 4 1 9 12 6 5 3 2 22 4 18 2 5 Detach 94 | . 2 . . . 5 . . 1 4 4 . 2 2 1 . . . 5 3 2 . 8 9 1 6 2 4 14 4 8 3 4 Swap 414 | . 11 11 . 4 14 15 11 16 46 30 22 2 8 2 7 12 2 10 23 9 1 20 13 20 20 10 23 22 11 17 2 . Drop 236 | . 12 3 . 5 37 8 7 8 19 19 9 . 1 5 1 1 . 3 4 11 5 13 4 1 8 1 12 11 13 13 1 1 Fire 1570 | 12 85 22 . 8 95 50 47 35 102 98 25 26 21 21 17 7 18 86 48 7 56 76 41 24 57 20 74 139 77 105 28 43 Melee 105 | . . . . . . 31 1 10 4 14 14 . 1 8 . 1 . 3 1 4 . 4 5 1 3 . . . . . . . Ram 1 | . . . . . . . . . . . . . . . . . . . 1 . . . . . . . . . . . . . Kick 4 | . 1 . . . . . . . . . . . . . . . . . . . . . . . . . . . . . . 3 Crush 52 | . 3 1 . 5 3 . 2 . 7 2 2 2 4 . . 2 . 4 1 . . 1 . 2 . . . 7 . 4 . . Escape Stasis 68 | . . . . . . 16 . 6 . 4 . . . . . . . 2 . . . . . . . . 4 6 10 . 20 . Rewire 121 | . . . . . . . . . . . . 16 . . . . . . 100 . . . . 5 . . . . . . . . Trap . | . . . . . . . . . . . . . . . . . . . . . . . . . . . . . . . . . Miscellaneous . | . . . . . . . . . . . . . . . . . . . . . . . . . . . . . . . . . Route ------- -11/Junkyard -10/Materials (discovered 4 exits: [*Mat x3] / *Min) -10/Mines (discovered 3 exits: [*Mat x2] / *Exi) -10/Exiles -9/Mines (discovered 2 exits: *Mat x2) -8/Materials (discovered 3 exits: *Fac x2 / Gar) -8/Garrison (discovered 3 exits: *Mat x3) -8/Materials -8/Garrison (discovered 3 exits: *Fac x3) -7/Factory (discovered 2 exits: *Low / Gar) -7/Garrison (discovered 3 exits: *Fac x3) -7/Factory -7/Lower Caves -7/Lower Caves (discovered 2 exits: *Fac / *Dat) -7/Data Miner -6/Proximity Caves -6/Factory (discovered 6 exits: Fac x2 / Low x2 / Ext x2) -6/Waste -6/Factory (discovered 2 exits: Fac / *Ext) -6/Extension (discovered 2 exits: *Fac / *Cet) -6/Cetus (discovered 2 exits: *Fac / [*Arc]) -6/Archives (discovered 3 exits: *Fac / *Hub x2) -6/Hub_04(d) (discovered 4 exits: *Fac x3 / Gar) -6/Garrison -5/Factory (discovered 3 exits: Upp x2 / Gar) -5/Garrison -4/Factory -4/Garrison -3/Research (discovered 2 exits: [*Tes] / Gar) -3/Garrison (discovered 2 exits: *Res x2) -2/Research -2/Garrison -2/Research History --------- Turn | Location | Event 2 | -11/Junkyard | Met Revision 17 4 | -11/Junkyard | Discovered new exit (range 15) 108 | -11/Junkyard | Entered Materials 308 | -10/Materials | Build established: Mutant 365 | -10/Materials | Discovered new exit (range 4) 512 | -10/Materials | Discovered new exit (range 18) 675 | -10/Materials | Discovered new exit (range 11) 792 | -10/Materials | Discovered new exit (range 16) 2037 | -10/Materials | Repaired Lgt. Treads 2064 | -10/Materials | Repaired Lgt. Treads 2595 | -10/Materials | Entered Mines 2653 | -10/Mines | Learned Materials trap positions 2702 | -10/Mines | Core integrity fell below 50% 2938 | -10/Mines | Found the Drone Emporium 2953 | -10/Mines | Found Prototype Device 3021 | -10/Mines | Discovered new exit (range 7) 3198 | -10/Mines | Discovered new exit (range 3) 3530 | -10/Mines | Received a Rocket Launcher from a helpful Derelict 3872 | -10/Mines | Assembled infested the area 3877 | -10/Mines | Assisted by a Guerilla fighting off Assembled 4019 | -10/Mines | Assisted by bots powering up and referring to "LRC-V3" 4042 | -10/Mines | Deemed a non-threat by the Exiles lab entrance 4044 | -10/Mines | Discovered new exit (range 5) 4108 | -10/Mines | Entered Exiles 4108 | -10/Exiles | Accompanied by 3 allies 4150 | -10/Exiles | Met 8R-AWN 4182 | -10/Exiles | Met EX-HEX 4233 | -10/Exiles | Met EX-BIN 4254 | -10/Exiles | Aligned with FarCom system 4255 | -10/Exiles | Given EX-Vault access code 4302 | -10/Exiles | Opened EX-Vault 4316 | -10/Exiles | Found Cloak of Protection 4352 | -10/Exiles | Warned to stay clear of 0b10 Research branches 4410 | -10/Exiles | Met EX-DEC 4417 | -10/Exiles | Learned location of Zion (-6) 4730 | -10/Exiles | Discovered new exit (range 11) 4752 | -10/Exiles | Left Exiles lab with Cloak of Protection 4752 | -10/Exiles | Entered Mines 4752 | -9/Mines | Accompanied by 3 allies 4871 | -9/Mines | Found a damaged Exp. Sensor Array with a note attached 4875 | -9/Mines | Found Prototype Device 4910 | -9/Mines | Learned location of 1 exit from Materials 5143 | -9/Mines | Discovered new exit (range 7) 5247 | -9/Mines | Met a Derelict who couldn't figure out how to use a Trap Extractor 5431 | -9/Mines | Core integrity fell below 20% 5586 | -9/Mines | Learned location of Storage (-8) 6074 | -9/Mines | Discovered new exit (range 6) 6398 | -9/Mines | Entered Materials 6398 | -8/Materials | Evolved 4 slots: Propulsion x2, Utility x2 6398 | -8/Materials | Identified Bomb Drone Bay 6399 | -8/Materials | Identified exit to Factory 6400 | -8/Materials | Loaded intel: 12 trap records 6400 | -8/Materials | Identified Exp. Sensor Array 6463 | -8/Materials | Repaired Lgt. Treads 6496 | -8/Materials | Repaired Med. Armor Plating 7817 | -8/Materials | Destroyed 7 combat bots 7818 | -8/Materials | Lost 4 parts (2n1u1w) 7869 | -8/Materials | Discovered exit to Factory (range 8) 8492 | -8/Materials | Identified exit to Garrison 8506 | -8/Materials | Entered Garrison 8506 | -8/Garrison | Accompanied by 1 ally 8600 | -8/Garrison | Rescued a captive Derelict 8658 | -8/Garrison | Triggered checkpoint 8709 | -8/Garrison | Garrison Relay disabled 8964 | -8/Garrison | Triggered checkpoint 9120 | -8/Garrison | Triggered checkpoint 9158 | -8/Garrison | Garrison Relay disabled 9197 | -8/Garrison | Discovered new exit (range 13) 9300 | -8/Garrison | Installed Relay Interface Framework 9460 | -8/Garrison | Triggered checkpoint 9542 | -8/Garrison | Triggered checkpoint 9614 | -8/Garrison | Garrison Relay disabled 9652 | -8/Garrison | Triggered checkpoint 9743 | -8/Garrison | Discovered new exit (range 13) 9854 | -8/Garrison | Triggered checkpoint 10009 | -8/Garrison | Discovered new exit (range 10) 10032 | -8/Garrison | Entered Materials 10483 | -8/Materials | Build established: Scavenger-Mutant 10632 | -8/Materials | Garrison activated, responded to threat 10832 | -8/Materials | First assault squad dispatched 10846 | -8/Materials | Identified exit to Garrison 10846 | -8/Materials | Entered Garrison 10874 | -8/Garrison | Triggered checkpoint 10904 | -8/Garrison | Triggered checkpoint 10917 | -8/Garrison | Garrison Relay disabled 10986 | -8/Garrison | Discovered exit to Factory (range 68) 10986 | -8/Garrison | Discovered exit to Factory (range 84) 10986 | -8/Garrison | Discovered exit to Factory (range 65) 11266 | -8/Garrison | Triggered checkpoint 11398 | -8/Garrison | Expanded RIF knowledge: Threat Obfuscation 11486 | -8/Garrison | Triggered checkpoint 11639 | -8/Garrison | Triggered checkpoint 11648 | -8/Garrison | Core integrity fell below 50% 11686 | -8/Garrison | Garrison Relay disabled 11879 | -8/Garrison | Entered Factory 11879 | -7/Factory | Evolved 2 slots: Power x1, Utility x1 12111 | -7/Factory | Garrison activated, responded to threat 12765 | -7/Factory | P-60 Hacker assimilated allied Smith 4a 13251 | -7/Factory | Discovered new exit (range 13) 13290 | -7/Factory | Identified exit to Lower Caves 14215 | -7/Factory | Identified exit to Garrison 14287 | -7/Factory | Entered Garrison 14287 | -7/Garrison | Accompanied by 2 allies 14312 | -7/Garrison | Triggered checkpoint 14322 | -7/Garrison | P-70 Sage assimilated hostile G-47 Trooper 14342 | -7/Garrison | Garrison Relay disabled 14640 | -7/Garrison | Build established: Bothacker-Mutant 14732 | -7/Garrison | Triggered checkpoint 14762 | -7/Garrison | Triggered checkpoint 14797 | -7/Garrison | Destroyed 12 combat bots 14896 | -7/Garrison | Triggered checkpoint 14916 | -7/Garrison | Expanded RIF knowledge: Alert ID Control 15016 | -7/Garrison | Triggered checkpoint 15016 | -7/Garrison | Discovered new exit (range 14) 15172 | -7/Garrison | Garrison Relay disabled 15255 | -7/Garrison | Garrison Relay disabled 15654 | -7/Garrison | Triggered checkpoint 15715 | -7/Garrison | Found embedded Infiltrators 15741 | -7/Garrison | Garrison Relay disabled 15768 | -7/Garrison | Garrison Relay disabled 15833 | -7/Garrison | Discovered new exit (range 13) 15863 | -7/Garrison | Triggered checkpoint 15887 | -7/Garrison | Discovered new exit (range 4) 15893 | -7/Garrison | Entered Factory 15893 | -7/Factory | Accompanied by 3 allies 16360 | -7/Factory | Repaired Hvy. Siege Treads 16693 | -7/Factory | Build established: Mutant 16701 | -7/Factory | Discovered exit to Lower Caves (range 5) 17212 | -7/Factory | Cargo convoy interrupted 17385 | -7/Factory | Entered Lower Caves 17385 | -7/Lower Caves | Accompanied by 2 allies 18362 | -7/Lower Caves | Discovered new exit (range 15) 18470 | -7/Lower Caves | Learned 4 Factory zone layouts 18936 | -7/Lower Caves | Attracted the attention of an 0b10 outpost 19232 | -7/Lower Caves | Entered another Lower Caves area 19232 | -7/Lower Caves | Accompanied by 3 allies 19388 | -7/Lower Caves | Discovered new exit (range 15) 19835 | -7/Lower Caves | Core integrity fell below 50% 19888 | -7/Lower Caves | Learned Armory emergency access door positions 19888 | -7/Lower Caves | Learned Factory trap positions 20229 | -7/Lower Caves | Identified exit to Data Miner 20490 | -7/Lower Caves | Learned 4 Factory zone layouts 20923 | -7/Lower Caves | Learned location of 1 exit from Factory 21046 | -7/Lower Caves | Entered Data Miner 21047 | -7/Data Miner | Discovered new exit (range 6) 21104 | -7/Data Miner | Met Data Miner 21149 | -7/Data Miner | Learned location of Section 7 (-2) 21149 | -7/Data Miner | Acquired the access code to Warlord's prototype stash 21166 | -7/Data Miner | Received God Mode back door access code from Data Miner 21176 | -7/Data Miner | Destroyed Data Miner 21178 | -7/Data Miner | Found Ghost Barrier 21179 | -7/Data Miner | Interfaced with the Data Conduit 21358 | -7/Data Miner | Found Exp. Thermal Shield 21481 | -7/Data Miner | Entered Proximity Caves 21484 | -6/Proximity Caves | Spotter reported a threat 21849 | -6/Proximity Caves | Spotter reported a threat 21912 | -6/Proximity Caves | Spotter reported a threat 22233 | -6/Proximity Caves | Learned 8 Factory zone layouts 22535 | -6/Proximity Caves | Discovered new exit (range 9) 22564 | -6/Proximity Caves | Attracted the attention of an 0b10 checkpoint 22834 | -6/Proximity Caves | Entered Factory 22834 | -6/Factory | Evolved 2 slots: Utility x2 22835 | -6/Factory | Identified exit to Factory 22836 | -6/Factory | Identified exit to Extension 22837 | -6/Factory | Loaded intel: 116 trap records 22838 | -6/Factory | Loaded intel: 238 machine locations 22935 | -6/Factory | Fabricated O-24 Administrator? 23141 | -6/Factory | Identified exit to Lower Caves 23184 | -6/Factory | Search patrols dispatched 23375 | -6/Factory | Sucked down chute 23375 | -6/Factory | Entered Waste 23390 | -6/Waste | EMP discharged 23405 | -6/Waste | 2 allies followed down the chute 23422 | -6/Waste | Spotted C-40 Crusher 23425 | -6/Waste | Spotted C-40 Crusher 23432 | -6/Waste | Spotted C-40 Crusher 23473 | -6/Waste | Spotted C-40 Crusher 23482 | -6/Waste | Spotted C-40 Crusher 23490 | -6/Waste | EMP discharged 23490 | -6/Waste | System corruption reached 10% 23525 | -6/Waste | Spotted C-40 Crusher 23590 | -6/Waste | EMP discharged 23689 | -6/Waste | Discovered new exit (range 11) 23690 | -6/Waste | EMP discharged 23690 | -6/Waste | System corruption reached 30% 23743 | -6/Waste | Entered Factory 23743 | -6/Factory | Accompanied by 1 ally 23744 | -6/Factory | Loaded intel: 281 machine locations 24256 | -6/Factory | Build established: Scavenger-Mutant 24813 | -6/Factory | Fabricated P-60 Hacker (x2) 25169 | -6/Factory | Garrison activated, responded to threat 25265 | -6/Factory | Intercept squad dispatched 25278 | -6/Factory | Spotted Tracker 25279 | -6/Factory | Spotted Combat Programmer 25295 | -6/Factory | Destroyed Tracker 25322 | -6/Factory | Destroyed Combat Programmer 25378 | -6/Factory | Lost 8 parts (1p1n5u1w) 25501 | -6/Factory | Fabricated L-41 Fighter? 25551 | -6/Factory | Discovered exit to Factory (range 11) 25589 | -6/Factory | Build established: Mutant 25755 | -6/Factory | Discovered exit to Extension (range 10) 25814 | -6/Factory | Found Launcher Loader 25865 | -6/Factory | Entered Extension 25865 | -6/Extension | Accompanied by 1 ally 25866 | -6/Extension | Loaded intel: 42 machine locations 25914 | -6/Extension | Build established: Hacker-Mutant 26051 | -6/Extension | Lost 4 parts (1n3u) 26589 | -6/Extension | Rescued a captive Derelict 26667 | -6/Extension | Rescued a captive Derelict 26709 | -6/Extension | Rescued A7 26756 | -6/Extension | Rescued a captive Derelict 26757 | -6/Extension | Rescued a captive Derelict 26833 | -6/Extension | Rescued a captive Derelict 26833 | -6/Extension | Rescued a captive Derelict 27075 | -6/Extension | Build established: Commander-Mutant 27089 | -6/Extension | Spotted B-75 Beast 27102 | -6/Extension | Spotted B-75 Beast 27104 | -6/Extension | Allies destroyed B-75 Beast 27109 | -6/Extension | Allies destroyed B-75 Beast 27261 | -6/Extension | Rescued a captive Derelict 27261 | -6/Extension | Rescued a captive Derelict 27281 | -6/Extension | Door terminal overloaded 27282 | -6/Extension | Rescued a captive Derelict 27282 | -6/Extension | Rescued a captive Derelict 27313 | -6/Extension | Rescued a captive Derelict 27409 | -6/Extension | Rescued a captive Derelict 27483 | -6/Extension | Rescued a captive Derelict 27604 | -6/Extension | Discovered exit to Factory (range 10) 27606 | -6/Extension | Discovered new exit (range 6) 27651 | -6/Extension | Entered Cetus 27651 | -6/Cetus | Accompanied by 23 allies (A7) 27652 | -6/Cetus | Loaded intel: 24 machine locations 27656 | -6/Cetus | Acquired a Cetus Manufacturing Module code from A7 27672 | -6/Cetus | Spotted Cetus Guard 27672 | -6/Cetus | Spotted Cetus Guard 27674 | -6/Cetus | Spotted Cetus Guard 27674 | -6/Cetus | Spotted Cetus Guard 27679 | -6/Cetus | Allies destroyed Cetus Guard 27687 | -6/Cetus | Allies destroyed Cetus Guard 27690 | -6/Cetus | Allies destroyed Cetus Guard 27691 | -6/Cetus | Allies destroyed Cetus Guard 27799 | -6/Cetus | Started Cetus Manufacturing Module 27824 | -6/Cetus | Manufactured an Enhanced Grunt 27845 | -6/Cetus | Escorted A7 to Cetus Mainframe 27849 | -6/Cetus | Manufactured an Enhanced Grunt 27870 | -6/Cetus | Discovered new exit (range 15) 27874 | -6/Cetus | Manufactured an Enhanced Grunt 27899 | -6/Cetus | Manufactured an Enhanced Grunt 27899 | -6/Cetus | Spotted Cetus Guard 27899 | -6/Cetus | Spotted Cetus Guard 27905 | -6/Cetus | Spotted Cetus Guard 27905 | -6/Cetus | Spotted Cetus Guard 27914 | -6/Cetus | Discovered exit to Factory (range 15) 27919 | -6/Cetus | Destroyed Cetus Guard 27924 | -6/Cetus | Manufactured an Enhanced Grunt 27926 | -6/Cetus | Allies destroyed Cetus Guard 27926 | -6/Cetus | Allies destroyed Cetus Guard 27930 | -6/Cetus | Met Revision 17 28064 | -6/Cetus | Entered Archives 28064 | -6/Archives | Accompanied by 14 allies (A7) 28065 | -6/Archives | Loaded intel: 8 machine locations 28069 | -6/Archives | Received a hacking code to weaken MAIN.C 28103 | -6/Archives | Discovered new exit (range 16) 28207 | -6/Archives | Discovered new exit (range 16) 28500 | -6/Archives | Discovered exit to Factory (range 16) 28601 | -6/Archives | Entered Hub_04(d) 28601 | -6/Hub_04(d) | Accompanied by 8 allies 28602 | -6/Hub_04(d) | Loaded intel: 93 machine locations 28602 | -6/Hub_04(d) | Discovered exit to Factory (range 11) 28792 | -6/Hub_04(d) | Build established: Hacker-Mutant 28794 | -6/Hub_04(d) | Found Exp. Thermal Shield 28899 | -6/Hub_04(d) | Identified exit to Garrison 28995 | -6/Hub_04(d) | Discovered exit to Factory (range 7) 29100 | -6/Hub_04(d) | Lost 4 parts (3u1w) 29273 | -6/Hub_04(d) | Network Hub disabled 29281 | -6/Hub_04(d) | Spotted Lightning 29287 | -6/Hub_04(d) | Spotted Lightning 29296 | -6/Hub_04(d) | Spotted Lightning 29320 | -6/Hub_04(d) | Destroyed Lightning 29323 | -6/Hub_04(d) | Destroyed Lightning 29332 | -6/Hub_04(d) | Destroyed Lightning 29339 | -6/Hub_04(d) | Build established: Scavenger-Mutant 29353 | -6/Hub_04(d) | Destroyed 7 combat bots 29366 | -6/Hub_04(d) | Found Exp. Targeting Computer 29387 | -6/Hub_04(d) | Found Prototype Device 29387 | -6/Hub_04(d) | Identified Exp. EM Disruption Field 29389 | -6/Hub_04(d) | Discovered exit to Factory (range 15) 29410 | -6/Hub_04(d) | Found Prototype Energy Cannon 29414 | -6/Hub_04(d) | Found Prototype Energy Cannon 29575 | -6/Hub_04(d) | Entered Garrison 29576 | -6/Garrison | Loaded intel: 28 machine locations 29627 | -6/Garrison | Core integrity fell below 50% 29688 | -6/Garrison | Found Relay Coupler [Proto] 29691 | -6/Garrison | Found Relay Coupler [Proto] 29695 | -6/Garrison | Found Relay Coupler [Proto] 29698 | -6/Garrison | Found Relay Coupler [Proto] 29774 | -6/Garrison | Triggered checkpoint 29787 | -6/Garrison | Garrison Relay disabled 29849 | -6/Garrison | Expanded RIF knowledge: Watcher Feeds 29873 | -6/Garrison | Spotted B-75 Beast 29977 | -6/Garrison | Destroyed B-75 Beast 30008 | -6/Garrison | Lost 3 parts (1u2w) 30168 | -6/Garrison | Triggered checkpoint 30261 | -6/Garrison | Discovered exit to Factory (range 9) 30275 | -6/Garrison | Entered Factory 30275 | -5/Factory | Evolved 2 slots: Utility x2 30276 | -5/Factory | Identified exit to Upper Caves 30277 | -5/Factory | Loaded intel: 296 machine locations 30398 | -5/Factory | Build established: Bothacker-Mutant 30411 | -5/Factory | Repaired Centrium Heavy Treads? 30594 | -5/Factory | Fabricated P-60 Hacker (x2) 30664 | -5/Factory | Repaired Centrium Medium Armor Plating 30773 | -5/Factory | Repaired Centrium Medium Armor Plating 30956 | -5/Factory | Garrison activated, responded to threat 31134 | -5/Factory | Identified exit to Garrison 31134 | -5/Factory | Entered Garrison 31135 | -5/Garrison | Loaded intel: 38 machine locations 31167 | -5/Garrison | Spotted B-90 Cyclops 31175 | -5/Garrison | Rewired B-75 Beast 31180 | -5/Garrison | Rewired B-86 Titan 31181 | -5/Garrison | Allies destroyed B-90 Cyclops 31370 | -5/Garrison | Triggered checkpoint 31371 | -5/Garrison | Triggered checkpoint 31376 | -5/Garrison | Triggered checkpoint 31440 | -5/Garrison | Triggered checkpoint 31466 | -5/Garrison | Build established: Scavenger-Mutant 31645 | -5/Garrison | Found Relay Coupler [Proto] 31648 | -5/Garrison | Found Relay Coupler [Proto] 31651 | -5/Garrison | Found Relay Coupler [Proto] 31686 | -5/Garrison | Garrison Relay disabled 31704 | -5/Garrison | Triggered checkpoint 31751 | -5/Garrison | Expanded RIF knowledge: Threat Obfuscation 31780 | -5/Garrison | Identified EMDS (x2) 31822 | -5/Garrison | Discovered new exit (range 13) 31841 | -5/Garrison | Rescued a captive Derelict 31842 | -5/Garrison | Rescued a captive Derelict 31902 | -5/Garrison | Entered Factory 31902 | -4/Factory | Accompanied by 4 allies 31902 | -4/Factory | Evolved 2 slots: Utility x2 31903 | -4/Factory | Loaded intel: 260 machine locations 31950 | -4/Factory | Build established: Botlord-Mutant 31993 | -4/Factory | Fabricated Adv. Force Field (x2) 32128 | -4/Factory | Identified exit to Garrison 32204 | -4/Factory | Garrison activated, responded to threat 32254 | -4/Factory | Repaired Centrium Heavy Treads 32288 | -4/Factory | Entered Garrison 32289 | -4/Garrison | Loaded intel: 41 machine locations 32376 | -4/Garrison | Triggered checkpoint 32378 | -4/Garrison | Triggered checkpoint 32406 | -4/Garrison | Destroyed 8 combat bots 32481 | -4/Garrison | Triggered checkpoint 32571 | -4/Garrison | Spotted B-86 Titan 32662 | -4/Garrison | Destroyed B-86 Titan 32673 | -4/Garrison | Lost 6 parts (1p5u) 32740 | -4/Garrison | Expanded RIF knowledge: Program Shield 32974 | -4/Garrison | Triggered checkpoint 33011 | -4/Garrison | Garrison Relay disabled 33194 | -4/Garrison | Triggered checkpoint 33218 | -4/Garrison | Garrison Relay disabled 33282 | -4/Garrison | Garrison Relay disabled 33293 | -4/Garrison | Garrison Relay disabled 33371 | -4/Garrison | Discovered new exit (range 10) 33393 | -4/Garrison | Entered Research 33393 | -3/Research | Accompanied by 2 allies 33393 | -3/Research | Evolved 2 slots: Power x1, Weapon x1 33394 | -3/Research | Loaded intel: 104 machine locations 33671 | -3/Research | First assault squad dispatched 34248 | -3/Research | Destroyed 7 combat bots 34284 | -3/Research | Identified exit to Garrison 34539 | -3/Research | Intercept squad dispatched 34543 | -3/Research | Lost 4 parts (1p2u1w) 34544 | -3/Research | Spotted Tracker 34548 | -3/Research | Assimilated Tracker with formatsys_high 34551 | -3/Research | Destroyed 7 combat bots 34568 | -3/Research | Spotted Combat Programmer 34581 | -3/Research | Destroyed Combat Programmer 34775 | -3/Research | Discovered new exit (range 15) 34839 | -3/Research | Lost 7 parts (1p1n3u2w) 35171 | -3/Research | Identified exit to Garrison 35291 | -3/Research | Entered Garrison 35291 | -3/Garrison | Accompanied by 2 allies 35292 | -3/Garrison | Loaded intel: 25 machine locations 35504 | -3/Garrison | System corruption reached 10% 35574 | -3/Garrison | Expanded RIF knowledge: Code Merge 35636 | -3/Garrison | Garrison Relay disabled 35638 | -3/Garrison | Triggered checkpoint 35727 | -3/Garrison | Spotted B-86 Titan 35778 | -3/Garrison | Destroyed B-86 Titan 35834 | -3/Garrison | Lost 6 parts (2p1n3u) 35952 | -3/Garrison | Triggered checkpoint 36121 | -3/Garrison | Discovered new exit (range 13) 36215 | -3/Garrison | Found embedded Infiltrators 36222 | -3/Garrison | Triggered checkpoint 36239 | -3/Garrison | Garrison Relay disabled 36372 | -3/Garrison | Triggered checkpoint 36492 | -3/Garrison | Triggered checkpoint 36492 | -3/Garrison | Triggered checkpoint 36702 | -3/Garrison | Garrison Relay disabled 36762 | -3/Garrison | Discovered new exit (range 10) 36776 | -3/Garrison | Spotted B-86 Titan 36776 | -3/Garrison | Spotted B-86 Titan 36790 | -3/Garrison | Entered Research 36790 | -2/Research | Evolved 2 slots: Utility x1, Weapon x1 36791 | -2/Research | Loaded intel: 97 machine locations 37153 | -2/Research | Build established: Botlord-Gunner 37313 | -2/Research | Garrison activated, responded to threat 37444 | -2/Research | Lost 4 parts (1p2n1u) 37643 | -2/Research | Spotted B-90 Cyclops 37814 | -2/Research | Spotted B-90 Cyclops 37837 | -2/Research | Intercept squad dispatched 37851 | -2/Research | Spotted Tracker 37852 | -2/Research | Spotted Tracker 37852 | -2/Research | Assimilated Tracker with formatsys_high 37866 | -2/Research | Allies destroyed Tracker 37911 | -2/Research | Spotted Combat Programmer 37924 | -2/Research | Destroyed Combat Programmer 37947 | -2/Research | Found Corrupted Exp. Phase Shifter 38221 | -2/Research | Identified exit to Garrison 38221 | -2/Research | Entered Garrison 38222 | -2/Garrison | Loaded intel: 39 machine locations 38276 | -2/Garrison | Rescued a captive Derelict 38277 | -2/Garrison | Rescued a captive Derelict 38338 | -2/Garrison | Triggered checkpoint 38409 | -2/Garrison | Garrison Relay disabled 38616 | -2/Garrison | Triggered checkpoint 38663 | -2/Garrison | Triggered checkpoint 38664 | -2/Garrison | Triggered checkpoint 38670 | -2/Garrison | Spotted B-90 Cyclops 38688 | -2/Garrison | Released all parts (14) 38726 | -2/Garrison | Core integrity fell below 50% 38739 | -2/Garrison | Lost 11 parts (1p6n3u1w) 38743 | -2/Garrison | Discovered new exit (range 10) 38748 | -2/Garrison | Entered Research 38749 | -2/Research | Loaded intel: 118 machine locations 38774 | -2/Research | Spotted B-90 Cyclops 39022 | -2/Research | Found Exp. Actuator Array 39025 | -2/Research | Found Adv. Particle Accelerator 39100 | -2/Research | Intercept squad dispatched 39113 | -2/Research | Lost 3 parts (1p1u1w) 39114 | -2/Research | Spotted Tracker 39115 | -2/Research | Spotted Tracker 39124 | -2/Research | Released all parts (8) 39129 | -2/Research | Core integrity fell below 20% 39130 | -2/Research | System corruption reached 10% 39137 | -2/Research | Destroyed by Tracker with Linked Autogun Last Messages --------------- 39122_ Impulse Thruster destroyed. 39124_ Released Biometal Leg. 39124_ Released Field Propulsion Drive. 39124_ Released Lgt. Antimatter Cannon. 39124_ Released Hdn. Centrium Leg. 39124_ Released Adv. Remote Datajack. 39124_ Released Adv. Heat Sink. 39124_ Released Adv. Particle Accelerator. 39124_ Released Lgt. Antimatter Reactor. 39125_ Acquired Hdn. Centrium Leg. 39125_ Tracker Integrated Tracker Drive temporarily disabled. 39127_ Acquired Biometal Leg. 39129_ Terminal disabled. 39129_ P-80 Master resets Tracker, system corruption cleaned. 39131_ System corrupted: Matter fused (-8). 39133_ R-10 Processor collects Adv. Particle Accelerator. 39134_ Kicked Tracker. 39136_ Biometal Leg destroyed. 39136_ Kicked Tracker out of the way. [Achievement: Punisher] Map ----- +----------------------------------------------------+ | # #????????????????????????????????? | | # #????????????????????????????????? | | ?# #????????????????????????????????? | | #### #????????????????????????????????? | | # """" ?????????????????????????????????? | | # """" ?????????????????????????????????? | | + """" ?????????????????????????????????? | | # """" ??????????????????????????????????? | | # ###########??????????????????????? | | # # #??????????????????????? | | # ! # #??????????????????????? | | # # ] #?????"""""????????????? | | ############## ] #?????"""""????????????? | | #????????????# #?????"""""????????????? | | #????????????# #??????????????????????? | | #????????????# #??????????????????????? | | #????????????# ###????????????????????? | | #################+#############+#######???????? | | %[ ???????? | | ! = = =% ??????? | | = ??????? | | [! w ??????? | | =[ ##########+#############[ ###+##????????????? | | =!#????# # %% # #?????????????????? | | #????# # sp# #?????????????????? | | #????#""" # @p% #??"""????????????? | | #????#"""" # s# #??"""????????????? | | #????#"""" #" # #??"""????????????? | | #????# """ #"" # #??"""????????????? | | #????# #" !|R # #??"""????????????? | | #????# #""] # #?????????????????? | | #????###########"" =* # #?????????????????? | | #??????????????# # #?????????"???????? | | #??????????????# # #?????????T???????? | | #??????????????######### +?????????"???????? | | #???????????????????????w #?????????????????? | | #??????????????????????? #?????????????????? | | ?????????????s?????????? #?????????????????? | | ??????????????p????????? #?????????????????? | | ????????????????h????"T"??? ???????????????????? | | ?????????????????????????????????????????????????? | | ?????????????????????????????????????????????????? | | ?????????????????????????????????????????????????? | | ?????????????????????????????????????????????????? | | ?????????????????????????????????????????????????? | | ?????????????????????????????????????????????????? | | ?????????????????????????"""??"""????????????????? | | ?????????????????????????"""??"""????????????????? | | ?????????????????????????"""??"""????????????????? | | ??????????""?????????????????????????????????????? | +----------------------------------------------------+ Best States ------------- Heat Dissipation 108 Energy Generation 61 Energy Capacity 1415 Matter Stores 450 Matter Capacity 450 Sight Range 22 Terrain Scan Density 10 Cloak Strength 5 Additional Mass Support 9 Armor Coverage 1800 Resistance: KI 30 Resistance: TH 30 Resistance: EM 75 Propulsion Shielding 33 Weapon Shielding 33 Weapon Cycling 30 Phase Shifting 15 Evasion (%) 59 Targeting Accuracy 32 Target Analysis 12 Core Analysis 6 Recoil Reduction 4 Particle Charging 50 Offensive Hacking 26 Defensive Hacking 20 Relay Coupler Types 6 Relay Coupler Value 179 Authchip Count 1 Item Schematics ----------------- Lrn. Tractor Beam | -7/Factory | Scanalyzed Combat Drone Bay | -7/Data Miner | Free Lgt. Regenerative Plating | -7/Data Miner | Free Cld. Aerolev Unit | -7/Data Miner | Free Exp. Targeting Computer | -7/Data Miner | Free Scatter Rocket Array | -7/Data Miner | Free Arm. Medium Treads | -7/Data Miner | Free Adv. Cooling System | -7/Data Miner | Free Mass Driver | -7/Data Miner | Free Myomer Leg | -7/Data Miner | Free Imp. Heavy Treads | -6/Factory | Scanalyzed HERF Cannon | -6/Extension | Hacked Centrium Heavy Treads | -5/Factory | Scanalyzed Imp. Utility Shielding | -4/Factory | Hacked Robot Schematics ------------------ G-50 Soldier | -7/Data Miner | Free B-48 Gladiator | -7/Data Miner | Free M-28 Smith | -7/Data Miner | Free R-10 Processor | -7/Data Miner | Free E-15 Imp | -7/Data Miner | Free S-27 Virus | -7/Data Miner | Free P-60 Hacker | -6/Factory | Hacked Fabricated ------------ O-24 Administrator | x1 | -6/Factory | Preloaded P-60 Hacker | x2 | -6/Factory | Authchip L-41 Fighter | x3 | -6/Factory | Preloaded P-60 Hacker | x2 | -5/Factory Adv. Force Field | x2 | -4/Factory | Preloaded Alien Tech Used ----------------- None Achievements -------------- Just Shoot The Terminal Punisher Challenges ------------ None Game ------ Seed SurgeGrenadeAxe Manual? 0 Play Time 07:34:26 Cumulative 461.4 hours Start 2024.01.20 @ 03:44:56 End 2024.01.22 @ 23:31:22 Sessions 10 Manual Loads 0 Difficulty Rogue Special Mode None Game No. 177 Rogue 177 Adventurer 0 Explorer 0 Win Type - Total 22 Types 8/1/5/3/0/0/4/1/0 Lore% 92 Gallery% 94 Achievement% 83 Wizard Run 0 Options --------- ASCII 0 Keyboard 1 Movement Arrows Keybinds 0 Fullscreen 2 Font 18/X11 Map View 76x50 Tactical HUD 1 Map Filters NONE Filters NONE Steam 1 RUN: b6c3387c-e465-4529-8ca1-95796a6eb8b2